Cogmind - Beta 15 @@@ ROGUE MODE // 2025.08.20 @ 01:39:38 Player: puppuppit Result: Destroyed by Superfortress with Omega Cannon Performance ------------- Evolutions (8) 4000 Regions Visited (34) 6800 Robots Destroyed (850) 4250 Value Destroyed (36087) 36087 Prototype IDs (115) 2300 Alien Tech Used (7) 1400 Bonus (31997) 31997 TOTAL SCORE: 86834 Bonus ------- Triggered High Security 1500 High Alert Combat Kills 13007 Follower Combat Kills 4923 Entered Garrisons 400 Registered with UFD 300 Met Optimus in HQ 500 Met Zhirov 300 Met Warlord at Base 500 MAIN.C Attacked Warlord 500 Warlord Defense Kills 10554 Met Optimus at Protoforge 1000 Friendly Fire -1487 Cogmind --------- Core Integrity 0/1450 Matter 284/300 Energy 33/100 System Corruption 14% Temperature Cool (0) Movement Core (50) Location -2/Protoforge Parts ------- > --- POWER (2) -------- (None) > --- PROPULSION (8) --- (None) > --- UTILITY (9) ------ Experimental Optical Array Graphene Brace Ghost Barrier > --- WEAPON (4) ------- (None) > --- INVENTORY (5) ---- Light Quantum Reactor Overtuned Linear Accelerator Graviton Cannon Sigix Broadsword Peak State ------------ > --- POWER ------------ Quantum Reactor Light Quantum Reactor > --- PROPULSION ------- Combat Gravmag System Improved Antigrav System Improved Antigrav System Improved Antigrav System Cooled Antigrav System Cooled Antigrav System Antigrav Array > --- UTILITY ---------- Large Storage Unit Experimental Targeting Computer Experimental Core Analyzer Phase Armor Experimental Hacking Suite Experimental Hacking Suite Ghost Barrier A0-MCA's Component Scanner > --- WEAPON ----------- Hardcell Cannon Hardcell Cannon Sigix Broadsword > --- INVENTORY -------- Graviton Reactor Improved Antigrav System Cooled Antigrav System Advanced Cooling System Improved Matter Compressor Advanced Gravity Neutralizer Advanced Recoil Stabilizer Graphene Brace Phase Redirector Long-range Tractor Beam Transdimensional Reconstructor Compact Linear Accelerator Compact Linear Accelerator Chain Missile Launcher [Rating: 213] Favorites ----------- Power Cooled Ion Engine Engine Cooled Ion Engine Power Core Micro Nuclear Core Reactor Light Antimatter Reactor Propulsion Improved Antigrav System Treads Medium Treads Leg Aluminum Leg Hover Unit Improved Antigrav System Flight Unit Flight Unit Utility Large Storage Unit Device Weapon Mount Storage Large Storage Unit Processor Experimental Targeting Computer Hackware Experimental Hacking Suite Protection Improved Weapon Shielding Artifact Phase Redirector Weapon Assault Cannon Energy Gun Vortex Shotgun Energy Cannon Enhanced Nova Cannon Ballistic Gun Improved Assault Rifle Ballistic Cannon Assault Cannon Launcher Heavy Missile Launcher Special Weapon RU-N14's Throwing Claymores v3 Impact Weapon Makeshift Hammer Slashing Weapon Sigix Broadsword Piercing Weapon Vortex Lance Build | -11 -10 -10 -9 -9 -9 -8 -8 -8 -8 -8 -8 -7 -7 -7 -7 -5 -5 -5 -5 -5 -5 -4 -4 -4 -4 -4 -4 -4 -3 -3 -3 -2 -2 -2 ------- Run | Yrd Mat Min Mat Min Exi Min Mat Gar Mat Gar Mat Fac Sto Rec Scr Fac Was Fac Upp Upp Zhi Pro Fac Was Fac Upp Upp War Pro Res Tes Res Qua Frg Slots Evolved 16 | . . . 2 . . . 2 . . . . 2 . . . 4 . . . . . . 2 . . . . . . 2 . 2 . . Power 1 | . . . . . . . . . . . . . . . . . . . . . . . 1 . . . . . . . . . . . Propulsion 6 | . . . . . . . 1 . . . . 2 . . . 2 . . . . . . . . . . . . . 1 . . . . Utility 7 | . . . . . . . 1 . . . . . . . . 2 . . . . . . 1 . . . . . . 1 . 2 . . Weapon 2 | . . . 2 . . . . . . . . . . . . . . . . . . . . . . . . . . . . . . . Parts Attached 448 | 7 7 3 26 . . . 22 11 4 15 12 25 6 2 5 44 4 15 4 3 4 2 42 7 4 2 4 42 6 34 20 15 12 39 Power 64 | 1 2 1 2 . . . 1 . . 2 2 6 . . 1 6 1 . . . . . 9 2 2 1 1 5 . 6 1 4 1 7 Engine 20 | 1 1 1 2 . . . 1 . . 2 2 4 . . 1 4 . . . . . . 1 . . . . . . . . . . . Core 9 | . 1 . . . . . . . . . . 2 . . . 2 . . . . . . 4 . . . . . . . . . . . Reactor 35 | . . . . . . . . . . . . . . . . . 1 . . . . . 4 2 2 1 1 5 . 6 1 4 1 7 Propulsion 140 | 2 2 1 13 . . . 9 1 1 7 7 4 2 1 2 16 . 10 1 1 . . 11 . 1 1 . 7 . 12 7 2 3 16 Treads 36 | 2 . 1 13 . . . 8 1 1 7 3 . . . . . . . . . . . . . . . . . . . . . . . Leg 2 | . 2 . . . . . . . . . . . . . . . . . . . . . . . . . . . . . . . . . Wheel . | . . . . . . . . . . . . . . . . . . . . . . . . . . . . . . . . . . . Hover 98 | . . . . . . . 1 . . . 1 4 2 1 2 16 . 10 1 1 . . 11 . 1 1 . 7 . 12 7 2 3 15 Flight 4 | . . . . . . . . . . . 3 . . . . . . . . . . . . . . . . . . . . . . 1 Utility 120 | 2 1 . 4 . . . 5 4 3 6 3 5 3 1 2 12 . 4 2 1 3 1 14 2 . . 2 11 . 9 3 4 3 10 Device 60 | 1 . . . . . . 1 2 1 5 2 4 2 1 1 5 . 2 2 1 1 1 8 1 . . 2 5 . 3 1 1 1 6 Storage 10 | 1 . . 2 . . . 1 . 1 . . . 1 . 1 . . . . . 1 . 1 . . . . 1 . . . . . . Processor 19 | . 1 . . . . . 1 . . . . 1 . . . 1 . 1 . . . . 2 1 . . . 4 . 3 . 1 . 3 Hackware 19 | . . . 2 . . . 1 . . . . . . . . 6 . 1 . . . . 3 . . . . . . 3 1 2 . . Protection 10 | . . . . . . . 1 2 1 1 1 . . . . . . . . . 1 . . . . . . 1 . . 1 . . 1 Artifact 2 | . . . . . . . . . . . . . . . . . . . . . . . . . . . . . . . . . 2 . Weapon 124 | 2 2 1 7 . . . 7 6 . . . 10 1 . . 10 3 1 1 1 1 1 8 3 1 . 1 19 6 7 9 5 5 6 Energy Gun 12 | . . . . . . . . . . . . 2 . . . . . . . . . . . . . . . 6 1 1 2 . . . Energy Cannon 9 | . . . . . . . . . . . . 1 . . . . . . . . . . 1 . . . . . . . 5 2 . . Ballistic Gun 26 | 2 . 1 6 . . . 4 1 . . . 1 . . . . . . . . . . . . . . . 5 3 . . 3 . . Ballistic Cannon 54 | . . . . . . . . 5 . . . 6 . . . 8 3 1 1 . . 1 7 3 . . 1 1 1 6 1 . 3 6 Launcher 11 | . 2 . 1 . . . 3 . . . . . 1 . . 2 . . . . . . . . 1 . . . 1 . . . . . Special Weapon 8 | . . . . . . . . . . . . . . . . . . . . . 1 . . . . . . 6 . . 1 . . . Impact Weapon 2 | . . . . . . . . . . . . . . . . . . . . 1 . . . . . . . . . . . . 1 . Slashing Weapon 1 | . . . . . . . . . . . . . . . . . . . . . . . . . . . . . . . . . 1 . Piercing Weapon 1 | . . . . . . . . . . . . . . . . . . . . . . . . . . . . 1 . . . . . . Special Melee Weapon . | . . . . . . . . . . . . . . . . . . . . . . . . . . . . . . . . . . . Unidentified Prototypes 48 | . . . 1 . . . 2 . . . . 1 . . . 4 . . . . 4 . 2 1 . . . 14 1 3 8 . 6 1 Corrupted Parts 4 | . . . . . . . . . . . . . . . . . . . 1 . . . . . . . . 2 . . 1 . . . System Corruption 21 | . . . . . . . . . . . . . . . . . . . 1 . . . . . . . . 12 . . 8 . . . Parts Lost 125 | . 2 1 . . . . 3 . 2 4 9 1 2 . . 17 . 9 5 . . . 18 . . . . 11 1 6 5 . . 29 Power 12 | . 1 1 . . . . 1 . . 1 1 1 . . . . . 1 . . . . 1 . . . . 1 . . . . . 3 Propulsion 61 | . 1 . . . . . . . 1 . 3 . 2 . . 14 . 7 3 . . . 6 . . . . 3 . . 3 . . 18 Utility 18 | . . . . . . . . . 1 3 . . . . . 2 . 1 1 . . . 5 . . . . . . . 1 . . 4 Weapon 34 | . . . . . . . 2 . . . 5 . . . . 1 . . 1 . . . 6 . . . . 7 1 6 1 . . 4 Highest Loss Streak 15 | . 1 1 . . . . 1 . 1 2 9 1 1 . . 5 . 4 4 . . . 8 . . . . 3 1 2 3 . . 15 To Critical Strikes 2 | . . . . . . . . . . . . . . . . 1 . . . . . . 1 . . . . . . . . . . . Average Backups 12 | . 6 8 10 15 15 15 14 14 14 14 13 4 7 9 13 13 11 13 13 12 12 13 12 13 14 14 14 12 12 12 13 13 13 13 Power . | . . . . 2 2 2 1 1 1 . . . . . . . 1 . . . 1 1 1 1 1 1 1 . 1 . 1 . 1 1 Propulsion 2 | . . . 2 4 4 4 3 2 1 2 2 . 1 3 4 2 . . . . . . 1 2 2 1 1 1 1 2 3 2 1 1 Utility 5 | . 3 2 2 3 3 4 4 7 11 10 9 4 3 3 5 5 3 4 6 6 6 6 6 7 6 6 7 8 7 6 6 7 6 6 Weapon 3 | . 3 4 3 6 5 5 5 3 1 1 . . 2 3 2 4 6 7 6 6 5 4 2 1 3 4 4 1 2 2 1 2 3 3 Tool/Special . | . . . . . . . . . . . . . . . . . . . . . . . . . . . . . . . . . . . Unused Backups 79 | . 5 1 9 . 1 . 5 3 . 3 7 1 1 . 2 9 1 5 . . 1 . 6 1 . . . 1 1 7 . 1 3 5 Power 11 | . . . 1 . 1 . . . . 1 1 . . . . 2 1 . . . . . . 1 . . . . . 1 . . 1 1 Propulsion 18 | . . 1 5 . . . 1 . . 2 1 . . . . 2 . . . . . . 1 . . . . . . 4 . 1 . . Utility 33 | . 4 . 2 . . . 1 2 . . 5 1 1 . 2 4 . 1 . . 1 . 5 . . . . . 1 1 . . 1 1 Weapon 16 | . 1 . 1 . . . 3 1 . . . . . . . 1 . 4 . . . . . . . . . 1 . 1 . . 1 2 Tool/Special 1 | . . . . . . . . . . . . . . . . . . . . . . . . . . . . . . . . . . 1 Average Slot Usage (%) 94 | . 99 98 98 100 100 100 98 99 100 99 85 84 91 91 97 94 72 84 68 80 78 94 91 91 94 94 92 92 99 92 89 94 93 89 Engine 4 | . 5 10 10 11 11 11 8 9 9 8 7 5 . . . 4 2 . 5 5 5 5 . . . . . . . . . . . . Core 1 | . 8 2 . . . . . . . . . 1 7 7 6 . . . . . . . 6 . . . . . . . . . . . Reactor 2 | . . . . . . . . . . . . . . . . . 2 4 . . . . 3 10 10 10 10 9 10 9 9 8 8 7 Treads 11 | . 24 26 21 22 22 22 26 27 27 27 23 . . . . . . . . . . . . . . . . . . . . . . . Hover 17 | . . . . . . . . . . . 1 15 37 38 38 40 29 35 32 32 35 35 34 31 31 31 31 32 36 30 29 30 30 31 Device 8 | . 1 . . . . . . 6 12 13 16 18 15 15 13 9 12 13 7 11 14 17 13 10 10 10 10 9 10 4 4 5 5 13 Storage 7 | . 14 14 11 11 11 11 9 9 9 9 7 . 5 7 7 5 5 5 5 5 5 5 5 5 5 5 5 5 5 4 4 4 4 3 Processor 4 | . 12 14 3 . . . 3 . . . . 3 . . . . . . . . . . 4 9 10 10 10 10 10 14 11 12 13 10 Hackware 5 | . . . 7 11 11 11 9 2 . . . . . . . 11 5 7 11 11 7 5 6 5 5 5 5 5 5 8 11 15 14 6 Protection 1 | . . . . . . . 5 9 5 4 . . . . . . . . . . . . . . . . . . . . . . . . Ballistic Gun 10 | . 27 27 43 44 44 44 35 1 . . . . . . . . . . . . . . . . . . . 2 18 3 . 9 7 . Ballistic Cannon 14 | . . . . . . . . 33 35 35 27 11 24 22 29 18 9 12 3 8 3 16 12 18 21 20 18 10 1 14 7 1 4 10 Peak Build Rating 213 | 9 12 17 22 22 22 22 39 41 41 40 37 47 48 51 61 95 86 107 93 88 97 98 123 122 113 112 114 139 144 166 187 199 213 205 Average Rating 72 | 6 10 16 20 21 22 22 33 39 40 35 30 35 42 50 56 80 75 88 71 81 77 97 110 114 111 111 111 122 138 160 170 183 189 182 On Entrance 75 | . 9 11 17 22 22 22 22 37 41 40 34 13 47 48 51 56 67 80 87 74 88 97 97 114 113 111 112 112 132 139 156 187 187 200 Naked Turns . | . . . . . . . . . . . . . . . . . . . . . . . . . . . . . . . . . . . Heaviest Build 105 | 12 13 19 40 41 40 40 52 56 54 56 52 36 45 40 61 65 59 73 43 55 68 68 82 77 80 80 77 86 86 103 105 101 101 101 Greatest Support 128 | 40 40 42 42 40 40 40 84 84 84 76 62 40 41 43 54 79 58 80 69 56 70 70 82 76 76 77 77 88 88 103 128 109 121 115 Greatest Overweight (x) 1 | . 1 . 1 1 . . . . . . . . 1 . 1 1 1 1 1 . . . 1 1 1 1 . 1 . 1 1 1 . 1 Average Overweight (x) . | . . . . . . . . . . . . . . . . . . . . . . . . . . . . . . . . . . . Largest Inventory Capacity 15 | 8 8 8 15 15 15 15 15 15 15 15 15 5 10 10 15 15 15 15 15 15 15 15 15 15 15 15 15 15 15 15 15 15 15 15 Average Capacity 13 | 7 8 8 10 15 15 15 15 15 15 15 13 5 8 10 14 15 15 15 15 15 15 15 15 15 15 15 15 15 15 15 15 15 15 14 Most Carried 15 | . 8 8 15 15 15 15 15 15 15 15 15 5 10 10 15 15 15 15 15 15 15 15 15 15 15 15 15 15 15 15 15 15 15 15 Average Carried 13 | . 6 7 10 15 14 15 14 14 14 14 13 4 7 9 13 14 12 14 14 14 13 15 14 14 15 14 15 14 14 14 14 14 14 14 Final Capacity 15 | 8 8 8 15 15 15 15 15 15 15 15 5 5 10 10 15 15 15 15 15 15 15 15 15 15 15 15 15 15 15 15 15 15 15 15 Final Carried 15 | . 8 8 15 15 15 15 15 15 15 15 5 5 9 10 15 15 15 15 15 15 15 15 15 15 15 15 15 15 15 15 15 15 15 15 Class Distribution -------------------- 36% | Gunner 13% | Scavenger-Gunner 10% | Mutant 9% | Hacker-Gunner 8% | Commander-Gunner 7% | Tank 5% | Hacker-Mutant Dominant Class ---------------- Mutant | -10/Materials Mutant | -10/Mines Gunner | -9/Materials Gunner | -9/Mines Gunner | -9/Exiles Gunner | -8/Mines Tank | -8/Materials Commander-Gunner | -8/Garrison Gunner | -8/Materials Gunner | -8/Garrison Gunner | -8/Materials Mutant | -7/Factory Commander-Gunner | -7/Storage Gunner | -7/Recycling Gunner | -7/Scraptown Hacker-Gunner | -5/Factory Mutant | -5/Waste Mutant | -5/Factory Hacker-Mutant | -5/Upper Caves Hacker-Mutant | -5/Upper Caves Mutant | -5/Zhirov Skirmisher | -4/Proximity Caves Gunner | -4/Factory Gunner | -4/Waste Gunner | -4/Factory Gunner | -4/Upper Caves Gunner | -4/Upper Caves Commander-Gunner | -4/Warlord Scavenger-Gunner | -3/Proximity Caves Hacker-Gunner | -3/Research Hacker-Gunner | -3/Testing Wizard-Gunner | -2/Research Wizard-Gunner | -2/Quarantine Scavenger-Gunner | -2/Protoforge Resources | -11 -10 -10 -9 -9 -9 -8 -8 -8 -8 -8 -8 -7 -7 -7 -7 -5 -5 -5 -5 -5 -5 -4 -4 -4 -4 -4 -4 -4 -3 -3 -3 -2 -2 -2 ----------- Run | Yrd Mat Min Mat Min Exi Min Mat Gar Mat Gar Mat Fac Sto Rec Scr Fac Was Fac Upp Upp Zhi Pro Fac Was Fac Upp Upp War Pro Res Tes Res Qua Frg Matter Collected 37925 | 352 879 82 1735 173 . 178 1598 1072 772 1152 503 829 818 500 710 3237 1138 1150 386 251 530 194 2799 844 946 289 625 2409 636 2957 1072 612 601 5896 Remotely 4128 | . . . . . . . 49 . 242 . 235 . . . . 1425 863 437 . . . 70 280 . . . . . . . . . . 527 Salvage Created 35185 | 161 1440 91 2629 401 . 391 2298 1315 888 849 567 839 756 678 . 1765 540 769 139 59 294 40 2030 1206 815 151 377 2921 468 4028 915 892 607 3866 Parts 1533 | 12 85 5 182 25 . 19 139 71 45 49 27 44 38 15 . 70 . 39 14 . . 3 56 3 30 3 8 85 22 187 40 37 29 151 Haulers Intercepted 35 | . 2 . 6 . . . 6 . 1 . . 4 4 . . 3 . . . . . . 2 . . . . . . 6 . 1 . . Recyclers Shooed 28 | 1 3 . . . . . 1 . 1 . . 4 1 2 . 3 . 2 . . . . 8 . . . . . . 1 . 1 . . Parts Field Recycled . | . . . . . . . . . . . . . . . . . . . . . . . . . . . . . . . . . . . Retrieved Matter . | . . . . . . . . . . . . . . . . . . . . . . . . . . . . . . . . . . . Parts Self-Destructed 93 | . . . . . . . . . . . . . . . . . . . 12 . . 2 . . . 4 10 . 65 . . . . . Prevented 6 | . . . . . . . . . . . . . . . . . . . 1 . . . . . . 3 . . 2 . . . . . Kills | -11 -10 -10 -9 -9 -9 -8 -8 -8 -8 -8 -8 -7 -7 -7 -7 -5 -5 -5 -5 -5 -5 -4 -4 -4 -4 -4 -4 -4 -3 -3 -3 -2 -2 -2 ------- Run | Yrd Mat Min Mat Min Exi Min Mat Gar Mat Gar Mat Fac Sto Rec Scr Fac Was Fac Upp Upp Zhi Pro Fac Was Fac Upp Upp War Pro Res Tes Res Qua Frg Combat Hostiles Destroyed 577 | . 26 2 33 2 . 6 37 33 14 29 14 6 8 1 . 32 4 16 12 . . 3 24 6 18 6 9 77 9 52 9 4 6 79 Melee 15 | . . . . . . . . . . . . . . . . . . 1 . . . . . . . . . . . . . . 1 13 Guns 127 | . 19 . 27 . . 6 28 6 . . . 1 . . . . . . . . . . . . . . . 21 4 6 3 3 3 . Cannons 287 | . . . . . . . . 24 10 20 8 5 8 1 . 17 1 8 1 . . 1 13 6 14 2 6 28 . 43 6 1 2 62 AOE 146 | . 7 2 6 2 . . 9 3 4 9 6 . . . . 15 3 7 11 . . 2 9 . 4 4 3 28 5 3 . . . 4 Classes Destroyed 30 | 3 6 . 3 1 . . 2 3 1 . . . . . . 2 1 . . . . . . . . . . 3 1 1 2 . . 1 Worker 57 | 1 8 1 8 . . . 4 . 1 . 1 7 1 . . 1 . 2 . . . . 8 . 1 . . . . 2 2 5 4 . Builder 42 | . 3 . 6 1 . 1 5 . 5 . 2 . 3 . . 8 . . . . . . 2 . . . . . . 4 1 1 . . Tunneler 14 | 3 1 . 1 2 . 2 2 . . . . 1 . . . . . . . . . . 1 . . . . . . 1 . . . . Hauler 35 | . 2 . 6 . . . 6 . 1 . . 4 4 . . 3 . . . . . . 2 . . . . . . 6 . 1 . . Recycler 70 | 1 4 . 8 4 . 1 3 . 5 . . 5 3 8 . 6 . 1 . . . . 10 . 1 . . . . 3 3 3 1 . Mechanic 7 | . 1 . 1 . . . . . . . 1 . . . . . . . . . . . . . . . . . . . . . . 4 Operator 8 | . . . 2 . . . 2 . 1 . . 1 1 . . . . . . . . . 1 . . . . . . . . . . . Drone 17 | . . . . . . . . . . . . . . . . . . . . . . . . . . . . . . . 1 . 2 14 Watcher 32 | . 2 . 5 . . . 5 . 2 1 1 . . . . 1 . 4 . . . . 4 . . . . . . 3 1 . 2 1 Swarmer 104 | . 9 . 6 2 . 1 10 4 . 9 . . . . . 17 . 4 11 . . 2 9 . 5 3 2 1 5 3 . . . 1 Cutter 3 | . . . . . . . . . . . . . . . . . . . . . . . . . . . . . . 3 . . . . Saboteur 5 | . . . . . . . . . . . . . . . . 1 . . . . . . . . . . . 3 . . . . . 1 Grunt 187 | . 17 2 16 . . 5 19 10 8 8 9 . 5 . . 6 . 2 . . . . 5 . 6 . 4 33 2 17 2 . 1 10 Brawler 15 | . . . . . . . 1 1 1 . . . . . . . . . . . . . . . . . 1 6 1 2 . . . 2 Duelist 13 | . . . 1 . . . . . 1 1 3 . . . . . . . . . . . . . 1 . 1 1 . 1 1 . . 2 Protector 12 | . . . . . . . . . 1 . . . . . . . . . . . . . . . . . . 9 . . . . . 2 Researcher 2 | . . . . . . . . . . . . . . . . . . . . . . . . . . . . . . . 1 . 1 . Sentry 73 | . . . 10 . . . 6 11 3 7 2 4 4 1 . 4 . 3 1 . . 1 4 . 3 . 1 . . 5 . 2 . 1 Demolisher 5 | . . . . . . . . . . . . . . . . . . . . . . . . . . . . 5 . . . . . . Specialist 8 | . . . . . . . . 3 . 1 . . . . . . . . . . . . . . . . . 2 . . . . . 2 Hunter 34 | . . . . . . . . 2 . . . . . . . 1 . 4 . . . . . . 3 1 . 4 . 7 . . . 12 Programmer 61 | . . . . . . . . 3 . 3 . 2 . . . 2 . 3 . . . . 6 . . 2 . 6 . 14 5 2 3 10 Heavy 1 | . . . . . . . 1 . . . . . . . . . . . . . . . . . . . . . . . . . . . Behemoth 2 | . . . . . . . . . . . . . . . . . . . . . . . . . . . . . 1 . . . . 1 Compactor 10 | . . . . . . . . . . . . . . . . . 4 . . . . . . 6 . . . . . . . . . . Hotshot 9 | . . . . . . . . . . . . . . . . . . . . . . . . . . . . . . . . . . 9 Immortal 3 | . . . . . . . . . . . . . . . . . . . . . . . . . . . . . . . . . . 3 Overlord 1 | . . . . . . . . . . . . . . . . . . . . . . . . . . . . . . . . . . 1 Striker 5 | . . . . . . . . . . . . . . . . . . . . . . . . . . . . 4 . . . . . 1 Executioner 10 | . . . . . . . . . . . . . . . . . . . . . . . . . . . . 3 . . . . . 7 Protovariant X 1 | . . . . . . . . . . . . . . . . . . . . . . . . . . . . . . . 1 . . . Elite 1 | . . . . . . . . . . . . . . . . . . . . . . . . . . . . . . . . . . 1 Scrapoid 2 | . . . . . . . . . . . . . . . . 1 . . . . . . . . . . . . . . . . . 1 Zionite 1 | . . . . 1 . . . . . . . . . . . . . . . . . . . . . . . . . . . . . . Decomposer 1 | . . . . . . . . . . . . . . . . . . . . 1 . . . . . . . . . . . . . . Thug 1 | . . . . . . . . . . . . . . . . . . . . . . . . . . . . 1 . . . . . . Butcher 1 | . . . . . . . . . . . . . . . . . . 1 . . . . . . . . . . . . . . . . Sapper 1 | . . . . . . . . . . . . . . . . . . . . . . . . . . . . 1 . . . . . . Best Kill Streak 18 | 2 6 2 6 3 . 3 7 6 11 4 14 4 3 3 . 10 1 7 6 . . 3 8 2 12 3 5 18 5 11 5 6 5 8 Combat Bots Only 18 | . 4 2 5 2 . 3 7 6 6 4 10 2 3 1 . 8 1 4 6 . . 3 5 2 7 3 5 18 5 6 2 2 5 7 Max Kills in Single Turn 7 | 1 2 2 2 2 . 1 4 3 4 2 4 2 2 1 . 4 1 5 4 1 . 2 6 1 3 2 2 7 3 3 1 3 1 3 Gunslinging 1 | . . . . . . . . 1 . . . . . . . . . . . . . . . . . . . . 1 . . . . . Exploded 7 | . 2 2 2 2 . . 3 3 3 2 3 . . . . 3 1 4 4 . . 2 4 . 3 2 2 7 3 3 . . . 3 Melee 1 | . . . . . . . . . . . . . . . . . . 1 . . . . . . . . . . . . . . 1 1 Uniques/NPCs Destroyed . | . . . . . . . . . . . . . . . . . . . . . . . . . . . . . . . . . . . Combat | -11 -10 -10 -9 -9 -9 -8 -8 -8 -8 -8 -8 -7 -7 -7 -7 -5 -5 -5 -5 -5 -5 -4 -4 -4 -4 -4 -4 -4 -3 -3 -3 -2 -2 -2 -------- Run | Yrd Mat Min Mat Min Exi Min Mat Gar Mat Gar Mat Fac Sto Rec Scr Fac Was Fac Upp Upp Zhi Pro Fac Was Fac Upp Upp War Pro Res Tes Res Qua Frg Hostile Shots Fired 2717 | . 100 3 113 6 . 11 116 59 39 94 121 69 89 3 . 199 . 162 68 . . 17 313 . 20 26 18 151 35 146 214 41 91 393 Missed 1095 | . 30 . 52 4 . 4 42 17 10 18 45 38 36 . . 70 . 73 22 . . 9 153 . 5 10 5 52 11 65 107 22 39 156 Hits 1622 | . 70 3 61 2 . 7 74 42 29 76 76 31 53 3 . 129 . 89 46 . . 8 160 . 15 16 13 99 24 81 107 19 52 237 Melee 10 | . . . . . . . . . . . 4 . . . . . . . . . . . . . . . . . . 4 . . 1 1 Projectile 1612 | . 70 3 61 2 . 7 74 42 29 76 72 31 53 3 . 129 . 89 46 . . 8 160 . 15 16 13 99 24 77 107 19 51 236 AOE 8 | . . . . . . . . . . . . . . . . . . 2 . . . . . . . . . 3 . 1 . . . 2 Critical Strikes 72 | . . 1 2 . . . 2 3 1 4 3 . 2 . . 2 . 1 1 . . . 9 . . . . 3 1 3 5 2 4 23 Actively Blocked 27 | . . . . . . . . . 1 1 . . . . . . . 1 1 . . . . . . . . . . . . . 1 22 Part Disruptions 4 | . . . . . . . . . . . . . . . . . . . . . . . 2 . . . . . . . 1 . 1 . Damage Taken 31211 | . 771 39 769 55 . 119 1229 668 506 1120 1399 361 609 31 . 2440 30 1402 732 . . 159 2914 . 457 277 311 2098 552 1976 2214 389 992 6592 Core 4159 | . 152 . 89 . . . 57 61 36 78 191 40 112 . . 211 15 239 265 . . 29 298 . 40 30 62 394 37 70 201 110 88 1254 Absorbed by Shields 1397 | . . . . . . . . . . 35 . . . . . 16 . 21 . . . . . . . . . 441 . . 110 50 210 514 Redirected to Core 49 | . . . . . . . . . . . . . . . . . . . . . . . . . . . . . . . . . . 49 Redirected to Shielding 390 | . . . . . . . . 88 134 168 . . . . . . . . . . . . . . . . . . . . . . . . Ignored by Resistances 143 | . . . . . . . . . . . . . . . . . . . . . . . . . . . . 32 90 . 21 . . . Regen/Repaired (Parts) 6084 | . 136 . 259 . . . 490 . . . 145 12 58 . 554 228 109 285 . . . . 307 301 206 139 166 17 . 332 433 . 259 1648 Core Remaining (%) 55 | 100 . 39 . . . 77 . . . . 23 . . . 78 . . . . . . 24 . . . . . . 25 . 79 . . . Volleys Fired 1658 | 23 136 2 111 11 . 14 97 63 36 55 18 56 32 20 . 108 40 38 22 5 . 7 126 26 38 8 22 99 15 105 58 37 24 206 Largest 4 | 2 2 2 4 4 . 4 4 4 4 4 4 4 4 3 . 4 2 3 2 1 . 3 4 4 4 4 4 4 4 4 4 4 4 4 Hottest 298 | 40 50 55 102 92 . 92 108 155 155 155 155 160 160 120 . 160 94 145 94 47 . 145 192 209 169 169 169 224 160 226 298 248 225 270 Shots Fired 4565 | 46 270 4 435 41 . 56 385 195 124 157 59 107 103 52 . 285 56 82 23 5 . 16 229 81 137 23 72 334 53 318 101 68 54 594 Gun 1647 | 46 263 3 432 40 . 56 380 54 . . . 29 . . . . . . . . . . . . . . . 143 48 55 27 37 34 . Cannon 2774 | . . . . . . . . 138 122 150 53 78 101 52 . 276 33 78 17 5 . 14 200 81 135 18 67 175 3 262 73 31 20 592 Launcher 105 | . 7 1 3 1 . . 5 3 2 7 6 . 2 . . 9 23 4 6 . . 2 6 . 2 5 5 . 2 1 1 . . 2 Special 39 | . . . . . . . . . . . . . . . . . . . . . . . 23 . . . . 16 . . . . . . Kinetic 4223 | 46 263 3 432 40 . 56 380 192 122 150 53 76 101 52 . 276 33 78 17 5 . 14 188 81 135 18 67 263 51 317 41 39 42 592 Thermal 124 | . . . . . . . . . . . . 29 . . . . . . . . . . . . . . . . . . 54 29 12 . Explosive 119 | . 7 1 3 1 . . 5 3 2 7 6 . . . . 9 23 4 6 . . 2 6 . 2 5 5 16 2 1 1 . . 2 Electromagnetic 21 | . . . . . . . . . . . . 2 2 . . . . . . . . . 12 . . . . . . . 5 . . . Entropic 55 | . . . . . . . . . . . . . . . . . . . . . . . . . . . . 55 . . . . . . Robot Hit Streak 36 | 6 10 9 17 12 . 12 18 15 14 12 7 10 12 5 . 10 14 7 3 1 . 5 36 21 11 4 14 19 10 23 14 10 11 23 Robot Miss Streak 9 | 4 5 . 6 1 . 2 4 3 4 4 3 4 5 2 . 9 2 3 7 1 . 3 3 3 3 2 3 4 4 4 3 2 1 5 Penetration Max 2 | . . . . . . . . . . . . 1 1 . . 1 . 1 . . . . 1 . 1 . 1 1 1 2 . 2 1 . Secondary Targets 23 | . 4 . 3 . . 2 6 2 . . . . . . . . . . . . . . . . . . . 5 1 . . . . . Max Gunslinging Chain 1 | . 1 . 1 . . 1 1 1 . . . . . . . . . . . . . . . . . . . 1 1 . . . . . Shots Hit Robots 2729 | 28 153 3 263 25 . 37 230 93 66 67 30 71 54 25 . 141 41 44 3 2 6 8 149 59 86 11 38 240 39 176 46 35 40 420 Core Hits 1451 | 9 75 4 104 12 . 18 105 44 35 37 33 35 36 11 . 91 13 32 14 . . 3 65 17 45 14 23 199 24 107 33 23 20 170 Critical Kills 72 | . . . 2 . . . 1 . . . . . . . . . . 2 . . . 1 4 . 4 . 2 4 . 51 . 1 . . Critical Parts Destroyed 89 | . . . 1 . . . 1 . . . . . . . . . . 1 . 1 . 2 4 . 8 1 6 6 1 57 . . . . Critical Strikes 337 | . . . 3 . . . 2 2 2 3 2 6 4 7 . 20 2 7 . 1 . 6 32 3 21 3 12 23 3 119 5 1 . 48 Destroy 167 | . . . 3 . . . 2 . . . . . . . . . . 3 . . . 3 8 3 13 1 9 8 3 110 . 1 . . Blast 160 | . . . . . . . . 2 2 3 2 6 4 7 . 20 2 4 . . . 3 24 . 8 2 3 8 . 9 5 . . 46 Smash 1 | . . . . . . . . . . . . . . . . . . . . 1 . . . . . . . . . . . . . . Sever 5 | . . . . . . . . . . . . . . . . . . . . . . . . . . . . 3 . . . . . 2 Detonate 4 | . . . . . . . . . . . . . . . . . . . . . . . . . . . . 4 . . . . . . Melee Attacks 64 | . . . . . . . . . . . . . . . . . . . . 3 6 1 3 . . . . 1 . . . . 15 35 Impact 13 | . . . . . . . . . . . . . . . . . . . . 3 6 1 3 . . . . . . . . . . . Slashing 50 | . . . . . . . . . . . . . . . . . . . . . . . . . . . . . . . . . 15 35 Piercing . | . . . . . . . . . . . . . . . . . . . . . . . . . . . . . . . . . . . Entropic 1 | . . . . . . . . . . . . . . . . . . . . . . . . . . . . 1 . . . . . . Sneak Attacks 22 | . . . . . . . . . . . . . . . . . . . . . . . 1 . . . . . . . . . 6 15 Combat Hostiles 2 | . . . . . . . . . . . . . . . . . . . . . . . . . . . . . . . . . 1 1 Follow-up Attacks . | . . . . . . . . . . . . . . . . . . . . . . . . . . . . . . . . . . . Damage Inflicted 115032 | 244 2296 122 4089 521 . 569 4505 2491 2448 3023 2050 2033 2718 786 . 6761 4850 2503 1196 118 551 429 6712 2334 2609 800 1489 19180 1410 5926 3347 1416 2212 23294 Guns 20884 | 244 1616 28 3766 375 . 569 3842 506 . . . 697 . . . . . . . . . . . . . . . 5070 967 1090 592 837 685 . Cannons 59034 | . . . . . . . . 1608 1891 2054 736 1303 1890 786 . 4297 1069 1446 63 28 . 208 4845 2334 2164 278 949 5281 13 4496 1929 579 404 18383 Explosions 29168 | . 680 94 323 146 . . 663 377 557 969 1306 33 828 . . 2464 3781 1005 1133 . . 221 1685 . 445 522 540 8220 430 340 826 . . 1580 Melee 5169 | . . . . . . . . . . . . . . . . . . . . 90 551 . 74 . . . . . . . . . 1123 3331 Ramming 168 | . . . . . . . . . . . 8 . . . . . . 52 . . . . 108 . . . . . . . . . . . Kinetic 73268 | 244 1616 28 3766 375 . 569 3842 2114 1891 2054 736 1276 1890 786 . 4297 1069 1446 63 28 . 208 4408 2334 2164 278 949 7057 980 5586 1107 837 887 18383 Thermal 4273 | . . . . . . . . . . . . 697 . . . 132 . 113 . . . . . . . . . 1030 . . 1520 579 202 . Explosive 26923 | . 680 94 323 146 . . 663 377 557 969 1306 . 105 . . 2300 3781 892 1133 . . 221 1685 . 445 522 540 7190 430 340 644 . . 1580 Electromagnetic 1328 | . . . . . . . . . . . . 60 723 . . 32 . . . . . . 437 . . . . . . . 76 . . . Impact 715 | . . . . . . . . . . . . . . . . . . . . 90 551 . 74 . . . . . . . . . . . Slashing 5063 | . . . . . . . . . . . . . . . . . . . . . . . . . . . . 609 . . . . 1123 3331 Piercing . | . . . . . . . . . . . . . . . . . . . . . . . . . . . . . . . . . . . Entropic 3294 | . . . . . . . . . . . . . . . . . . . . . . . . . . . . 3294 . . . . . . Highest Corruption 25 | . 1 1 . . . . . . . 1 1 1 1 1 . 7 1 2 3 3 3 3 4 1 . . . 13 13 11 25 . 7 14 Average Corruption 4 | . 1 1 . . . . . . . 1 1 1 1 1 . 2 1 1 2 3 3 3 3 1 . . . 6 13 4 12 . 4 9 Corruption Purged 12 | . . . . . . . . . . 1 . . . . . 7 . . . . . . 3 1 . . . . . . . . . . Corruption Blocked . | . . . . . . . . . . . . . . . . . . . . . . . . . . . . . . . . . . . Effects 277 | . 5 3 . . . . . . . 13 . 1 4 4 . 11 2 3 6 10 3 3 13 . . . . 4 20 32 34 . 5 101 Message Errors 58 | . . . . . . . . . . . . . 2 1 . 3 . 1 1 3 1 1 1 . . . . 1 5 7 7 . . 24 Matter Fused 64 | . 1 1 . . . . . . . 5 . 1 2 2 . 2 . . 2 4 . 1 2 . . . . . 2 11 8 . 2 18 Heat Flow Errors 21 | . 2 . . . . . . . . 2 . . . . . 2 . . . 1 . . 1 . . . . 1 2 1 4 . . 5 Energy Discharges 35 | . 1 . . . . . . . . 3 . . . 1 . . 1 2 1 1 1 . 3 . . . . 1 6 3 3 . 1 7 Parts Rejected 9 | . . . . . . . . . . . . . . . . . 1 . . . . . 1 . . . . . . 1 1 . 1 4 Parts Fused 2 | . . 1 . . . . . . . . . . . . . . . . . . . . 1 . . . . . . . . . . . Data Loss (minor) 29 | . . 1 . . . . . . . 3 . . . . . 3 . . 1 1 1 . 3 . . . . 1 2 2 3 . . 8 Data Loss (major) 7 | . . . . . . . . . . . . . . . . . . . . . . . . . . . . . . 3 . . . 4 Misfires 7 | . . . . . . . . . . . . . . . . . . . . . . 1 1 . . . . . 2 . 2 . 1 . Alerts 2 | . 1 . . . . . . . . . . . . . . . . . 1 . . . . . . . . . . . . . . . Misdirections 10 | . . . . . . . . . . . . . . . . . . . . . . . . . . . . . . . 3 . . 7 Weapon Failures 33 | . . . . . . . . . . . . . . . . 1 . . . . . . . . . . . . 1 4 3 . . 24 Overload Shots 2 | . . . . . . . . . . . . . . . . . . . . . . . . . . . . . . . 2 . . . Overflow Damage 4730 | . 43 . . . . . 39 27 89 74 41 38 64 43 . 277 3 194 99 107 416 63 335 . 54 57 57 477 . 164 184 20 71 1694 Projectiles 1723 | . . . . . . . . 23 78 33 9 38 64 43 . 120 . 44 . 17 . . 231 . 52 . 57 180 . 164 137 20 15 398 Explosions 1104 | . 43 . . . . . 39 4 11 41 32 . . . . 157 3 108 99 . . 63 100 . 2 57 . 297 . . 47 . . 1 Melee 1903 | . . . . . . . . . . . . . . . . . . 42 . 90 416 . 4 . . . . . . . . . 56 1295 Knockbacks 245 | . . . . . . . . 2 14 15 4 5 6 3 . 22 . 5 . . 1 1 38 . 9 1 10 16 . 28 10 . 2 53 Impact 2 | . . . . . . . . . . . . . . . . . . . . . 1 . 1 . . . . . . . . . . . Kinetic 228 | . . . . . . . . 2 13 15 3 4 5 3 . 21 . 5 . . . 1 32 . 9 1 10 16 . 27 10 . 2 49 Secondary 15 | . . . . . . . . . 1 . 1 1 1 . . 1 . . . . . . 5 . . . . . . 1 . . . 4 Self-Inflicted Damage 899 | . . . . 39 . . . 38 37 65 79 . . . . . . 26 37 . . 7 173 . . . 29 . . 132 237 . . . Shots 20 | . . . . 1 . . . 1 1 2 2 . . . . . . . 1 . . 1 4 . . . 2 . . 2 3 . . . Rammed 6 | . . . . . . . . . . . 2 . . . . . . 1 . . . . 3 . . . . . . . . . . . Targets Rammed 6 | . . . . . . . . . . . 2 . . . . . . 1 . . . . 3 . . . . . . . . . . . Kicked . | . . . . . . . . . . . . . . . . . . . . . . . . . . . . . . . . . . . Crushed . | . . . . . . . . . . . . . . . . . . . . . . . . . . . . . . . . . . . Highest Temperature 438 | . 190 19 111 15 . 53 233 259 321 316 245 217 180 27 . 438 126 118 302 179 . . 225 236 157 179 99 351 208 348 368 135 9 184 Average Temperature 62 | . 21 10 26 10 . 22 36 76 99 104 79 60 70 18 . 86 37 30 58 35 . . 48 53 48 59 40 102 109 92 72 44 5 37 Received Heat Transfer 5534 | . 327 42 321 . . 63 558 234 234 429 684 81 276 18 . 492 . 90 81 . . . 478 . 51 . 30 207 60 120 210 59 28 361 Effects 10 | . . . . . . . 1 2 1 1 . . . . . . . . . . . . . . . . . 2 . 2 1 . . . Shutdowns 1 | . . . . . . . . . . . . . . . . . . . . . . . . . . . . 1 . . . . . . Energy Bleed 4 | . . . . . . . . 2 1 . . . . . . . . . . . . . . . . . . . . . 1 . . . Interference 4 | . . . . . . . 1 . . . . . . . . . . . . . . . . . . . . 1 . 2 . . . . Short Circuit 1 | . . . . . . . . . . 1 . . . . . . . . . . . . . . . . . . . . . . . . Siege Activations . | . . . . . . . . . . . . . . . . . . . . . . . . . . . . . . . . . . . Martial Activations . | . . . . . . . . . . . . . . . . . . . . . . . . . . . . . . . . . . . Shielding Activations . | . . . . . . . . . . . . . . . . . . . . . . . . . . . . . . . . . . . Robots Disrupted . | . . . . . . . . . . . . . . . . . . . . . . . . . . . . . . . . . . . Combat Hostiles . | . . . . . . . . . . . . . . . . . . . . . . . . . . . . . . . . . . . Robots Corrupted 7 | . . . . . . . . . . . . . . . . . . . . . 3 . 2 . . . . . . . . . . 2 Combat Hostiles 1 | . . . . . . . . . . . . . . . . . . . . . 1 . . . . . . . . . . . . . Parts Fried 28 | . . . . . . . . . . . . . . . . . . 4 . 1 3 . 10 . . . . 5 . . 3 . . 2 Impact Corruptions 24 | . . . . . . . . . . . . . . . . . . 1 . 4 16 . 1 . . . . . . . . . . 2 Robots Melted . | . . . . . . . . . . . . . . . . . . . . . . . . . . . . . . . . . . . Combat Hostiles . | . . . . . . . . . . . . . . . . . . . . . . . . . . . . . . . . . . . Parts Melted 15 | . . . . . . . . 3 . . . 1 . . . 2 . . . . . . . . . . . 5 . . 3 1 . . Heat Transferred 4002 | . . . . . . . . . . . . 1500 . . . 100 . 50 . . . . . . . . . 550 . . 1173 481 148 . Parts Sabotaged 1 | . . . . . . . . . . . . . . . . . . . . . . . . . . . . . . . . . 1 . Parts Stolen . | . . . . . . . . . . . . . . . . . . . . . . . . . . . . . . . . . . . Parts Stripped . | . . . . . . . . . . . . . . . . . . . . . . . . . . . . . . . . . . . Power Chain Reactions 1 | . . . . . . . . . . . . . . . . . . . . . . . . . . . . . . . . 1 . . Alert | -11 -10 -10 -9 -9 -9 -8 -8 -8 -8 -8 -8 -7 -7 -7 -7 -5 -5 -5 -5 -5 -5 -4 -4 -4 -4 -4 -4 -4 -3 -3 -3 -2 -2 -2 ------- Run | Yrd Mat Min Mat Min Exi Min Mat Gar Mat Gar Mat Fac Sto Rec Scr Fac Was Fac Upp Upp Zhi Pro Fac Was Fac Upp Upp War Pro Res Tes Res Qua Frg Maximum Alert Level 5 | . 1 . 2 1 . . 3 5 4 5 4 3 3 2 . 5 4 5 . . . . 4 2 5 . . . . 4 5 4 4 5 Low Security (%) 20 | 100 89 100 42 89 . 100 23 . . . . . . . . 10 . . . . . . 14 . 9 . . . . 37 . . . . Level 1 10 | . 10 . 30 10 . . 33 . . . . . . 7 . 6 . . . . . . 3 77 11 . . . . 25 . . . . Level 2 15 | . . . 27 . . . 41 12 . . . 42 28 92 . 5 . . . . . . 20 22 21 . . . . 9 37 . . . Level 3 15 | . . . . . . . 1 17 . 3 . 58 71 . . 29 . 33 . . . . 31 . 12 . . . . 25 25 8 55 22 Level 4 19 | . . . . . . . . 23 100 29 100 . . . . 11 100 35 . . . . 29 . 19 . . . . 2 22 91 45 27 Level 5 17 | . . . . . . . . 46 . 66 . . . . . 34 . 30 . . . . . . . . . . . . . . . 49 High Security . | . . . . . . . . . . . . . . . . 1 . . . . . . . . 23 . . . . . 14 . . . Max Security . | . . . . . . . . . . . . . . . . . . . . . . . . . . . . . . . . . . . Peak Influence 3014 | 5 341 159 563 216 . 126 754 2838 1568 2640 1587 1045 1026 555 . 2132 1194 1863 . . . . 1267 433 2016 . . . . 1130 1979 1578 1316 3014 Initial 1383 | . . 129 1 216 . . 5 487 1383 1014 1287 725 475 399 . . 1100 782 . . . . . 431 168 . . . . 66 635 1113 882 735 Average 919 | 1 112 87 260 119 . 43 351 1595 1395 1834 1302 752 741 462 . 1142 1149 1328 . . . . 738 343 1035 . . . . 412 999 1234 1045 1689 Influence Increases 34625 | 25 884 65 1344 161 . 285 1429 2511 677 1766 697 818 1121 307 . 3245 228 1911 590 65 10 60 2423 24 2148 284 521 2494 324 1856 1672 739 682 3259 Destroy 0b10 Robot/C 13400 | . 520 40 660 80 . 200 840 740 340 800 280 220 340 20 . 960 . 640 240 . . 60 480 . 760 140 280 1600 180 1060 280 100 100 1440 Destroy 0b10 Robot/NC 1555 | 25 105 5 185 35 . 20 145 . 80 5 25 95 70 55 . 100 . 40 . 5 10 . 140 . 15 . . 45 . 110 40 50 45 105 Destroy Leader 2312 | . 108 10 222 10 . 30 222 20 96 30 52 90 120 . . 200 . 130 20 . . . 122 . 130 30 20 . 20 240 42 42 14 292 Allied During Kill 3177 | . . . . 14 . 20 35 118 20 60 1 41 230 . . 228 . 281 . . . . . . 850 114 221 609 4 116 39 15 . 161 Trap Triggered on 0b10 40 | . . . . . . . . . . . . . . . . . . . . . . . . . . . . . . . 40 . . . Successful Hack 957 | . 37 . 51 . . . 43 22 19 21 31 44 30 26 . 59 . 22 . . . . 141 . 23 . . . . 156 49 34 31 118 Select Force Hacks 390 | . 30 . 120 . . . 30 . . . . . . 180 . . . 30 . . . . . . . . . . . . . . . . Disable Machine 1605 | . 30 . 30 15 . 15 15 45 15 45 45 105 105 . . 345 . 135 . . . . 150 . 75 . . . . . 210 15 105 105 Anti-Garrison Action 2600 | . . . . . . . . 1500 . 650 . . . . . 150 . . . . . . . . . . . . . . 150 . . 150 Destroy Structure 2784 | . 39 10 31 7 . . 69 66 62 155 83 13 46 26 . 438 228 288 . . . . 280 24 280 . . . . 84 252 93 27 183 Partial Spotted 495 | . . . . . . . . . . . . 90 15 . . 135 . 15 . . . . 30 . 15 . . . . . 30 60 30 75 Lose Combat Pursuer 5310 | . 15 . 45 . . . 30 . 45 . 180 120 165 . . 630 . 330 330 60 . . 1080 . . . . 240 120 90 540 330 330 630 Influence Decreases 32140 | 25 552 393 794 592 123 271 693 423 1955 686 1743 1367 1140 905 428 1159 1566 1170 977 495 1052 60 1191 1015 373 907 694 1822 2118 824 823 1148 944 1712 Entered New Map 18144 | . . 203 3 338 123 . 9 263 1455 546 1353 869 570 627 428 . 1356 336 689 281 1042 . . 801 73 747 266 1220 1892 32 495 866 688 573 Time Decay 9416 | 25 532 180 641 254 . 231 624 . 270 . 270 428 230 278 . 549 180 404 238 214 10 60 551 214 160 160 368 292 196 522 278 222 246 589 Search Patrol Dispatched 600 | . . . . . . . . . . . . . . . . . . . . . . . 450 . . . . . . . . . . 150 Lost Part 1250 | . 20 10 . . . . 30 . 20 40 90 10 20 . . 170 . 90 50 . . . 180 . . . . 110 10 60 50 . . 290 Lost Ally 1680 | . . . . . . 40 30 160 60 100 30 60 170 . . 140 30 190 . . . . 10 . 140 . 60 200 20 60 . 60 10 110 Purge Threat 1050 | . . . 150 . . . . . 150 . . . 150 . . 300 . 150 . . . . . . . . . . . 150 . . . . Squads Dispatched 186 | . 6 . 6 . . . 7 . 5 . 5 10 7 . . 30 1 20 . . . . 16 . 14 . 1 . . 18 12 7 7 14 Investigation 84 | . 5 . 5 . . . 4 . 1 . 2 7 . . . 13 . 13 . . . . 10 . 4 . . . . 7 2 3 1 7 Extermination 24 | . . . . . . . . . . . . 2 . . . 3 . 2 . . . . 4 . . . . . . 5 3 1 3 1 Reinforcement 33 | . 1 . 1 . . . 2 . 2 . . . 4 . . 7 1 2 . . . . 2 . 1 . . . . 1 1 1 1 6 Assault 35 | . . . . . . . . . 1 . 3 1 3 . . 6 . 3 . . . . . . 8 . 1 . . 2 3 2 2 . Garrison 10 | . . . . . . . 1 . 1 . . . . . . 1 . . . . . . . . 1 . . . . 3 3 . . . Intercept . | . . . . . . . . . . . . . . . . . . . . . . . . . . . . . . . . . . . Searches Triggered 4 | . . . . . . . . . . . . . . . . . . . . . . . 3 . . . . . . . . . . 1 Construction Impeded 8 | . . . . . . . . . 1 . . . 1 . . 3 1 1 . . . . . . . . . . . . 1 . . . Haulers Reinforced 5 | . . . . . . . . . . . . . 3 . . 1 . . . . . . . . . . . . . . . . 1 . Active Scanning Responses . | . . . . . . . . . . . . . . . . . . . . . . . . . . . . . . . . . . . Cargo Convoy Interrupts 1 | . . . . . . . . . . . . . . . . 1 . . . . . . . . . . . . . . . . . . Stealth | -11 -10 -10 -9 -9 -9 -8 -8 -8 -8 -8 -8 -7 -7 -7 -7 -5 -5 -5 -5 -5 -5 -4 -4 -4 -4 -4 -4 -4 -3 -3 -3 -2 -2 -2 --------- Run | Yrd Mat Min Mat Min Exi Min Mat Gar Mat Gar Mat Fac Sto Rec Scr Fac Was Fac Upp Upp Zhi Pro Fac Was Fac Upp Upp War Pro Res Tes Res Qua Frg Distress Signals 50 | . 5 . 4 . . . 2 . 1 . . . 3 . . 2 . 4 1 . . . 9 . 1 . . 2 . 2 1 4 . 9 Communications Jammed . | . . . . . . . . . . . . . . . . . . . . . . . . . . . . . . . . . . . Distress Signals . | . . . . . . . . . . . . . . . . . . . . . . . . . . . . . . . . . . . Times Spotted 1391 | . 43 2 45 4 . 5 47 32 23 40 41 21 42 1 . 102 6 64 29 4 . 3 118 6 38 8 15 153 21 75 72 35 32 264 Peak Tracking Total 20 | . 5 2 4 4 . 3 7 6 6 5 13 6 17 1 . 13 3 10 8 4 . 2 15 4 6 4 5 20 11 12 18 15 12 15 Tactical Retreats 132 | . 1 . 2 . . . 2 . 3 . 4 4 1 . . 13 . 10 6 1 . . 24 . . . . 6 2 6 12 7 9 19 Traps | -11 -10 -10 -9 -9 -9 -8 -8 -8 -8 -8 -8 -7 -7 -7 -7 -5 -5 -5 -5 -5 -5 -4 -4 -4 -4 -4 -4 -4 -3 -3 -3 -2 -2 -2 ------- Run | Yrd Mat Min Mat Min Exi Min Mat Gar Mat Gar Mat Fac Sto Rec Scr Fac Was Fac Upp Upp Zhi Pro Fac Was Fac Upp Upp War Pro Res Tes Res Qua Frg Traps Triggered 30 | . 2 . 1 . . . . 5 . 1 . 3 . . . 6 . 5 . . . . 1 . . . . . . 1 1 . 1 3 Indirectly 1 | . . . . . . . . . . . . . . . . 1 . . . . . . . . . . . . . . . . . . Trap Hack Attempts . | . . . . . . . . . . . . . . . . . . . . . . . . . . . . . . . . . . . Triggered . | . . . . . . . . . . . . . . . . . . . . . . . . . . . . . . . . . . . Disarmed . | . . . . . . . . . . . . . . . . . . . . . . . . . . . . . . . . . . . Reprogrammed 6 | . . . . . . . 1 . . . . . . . . . . . . . . . . . . . . . . . 5 . . . Reused 4 | . . . . . . . . . . . . . . . . . . . . . . . . . . . . . . . 4 . . . Traps Extracted . | . . . . . . . . . . . . . . . . . . . . . . . . . . . . . . . . . . . Installed . | . . . . . . . . . . . . . . . . . . . . . . . . . . . . . . . . . . . Triggered 4 | . . . . . . . . . . . . . . . . . . . . . . . . . . . . . . . 4 . . . Machines | -11 -10 -10 -9 -9 -9 -8 -8 -8 -8 -8 -8 -7 -7 -7 -7 -5 -5 -5 -5 -5 -5 -4 -4 -4 -4 -4 -4 -4 -3 -3 -3 -2 -2 -2 ---------- Run | Yrd Mat Min Mat Min Exi Min Mat Gar Mat Gar Mat Fac Sto Rec Scr Fac Was Fac Upp Upp Zhi Pro Fac Was Fac Upp Upp War Pro Res Tes Res Qua Frg Machines Disabled 124 | . 2 . 2 1 . 1 1 8 1 6 3 7 7 . . 24 . 9 1 . 1 . 10 . 5 . . 3 . . 15 1 7 9 Max in Single Turn 9 | . 1 . 1 1 . 1 1 1 1 2 1 4 1 . . 9 . 2 1 . 1 . 4 . 1 . . 1 . . 2 1 1 1 Garrison Access 13 | . . . . . . . . . . . . 1 . . . 1 . 3 . . . . 4 . 1 . . . . 1 1 . . 1 Garrison Relay 4 | . . . . . . . . 3 . 1 . . . . . . . . . . . . . . . . . . . . . . . . Phase Generator 2 | . . . . . . . . 1 . 1 . . . . . . . . . . . . . . . . . . . . . . . . Machines Repaired . | . . . . . . . . . . . . . . . . . . . . . . . . . . . . . . . . . . . Machines Dismantled . | . . . . . . . . . . . . . . . . . . . . . . . . . . . . . . . . . . . Machines Sabotaged . | . . . . . . . . . . . . . . . . . . . . . . . . . . . . . . . . . . . Overloaded Fab Kills . | . . . . . . . . . . . . . . . . . . . . . . . . . . . . . . . . . . . Hacking | -11 -10 -10 -9 -9 -9 -8 -8 -8 -8 -8 -8 -7 -7 -7 -7 -5 -5 -5 -5 -5 -5 -4 -4 -4 -4 -4 -4 -4 -3 -3 -3 -2 -2 -2 --------- Run | Yrd Mat Min Mat Min Exi Min Mat Gar Mat Gar Mat Fac Sto Rec Scr Fac Was Fac Upp Upp Zhi Pro Fac Was Fac Upp Upp War Pro Res Tes Res Qua Frg Machines Accessed 254 | . 10 1 14 . 1 . 15 3 6 3 7 16 9 12 2 25 . 20 . . 4 . 32 . 7 1 . 7 . 17 13 8 7 14 Terminals 124 | . 7 . 8 . . . 11 3 5 3 5 6 6 6 . 13 . 8 . . . . 16 . 1 . . . . 6 10 . 5 5 Fabricators 17 | . . . . . . . . . . . . 3 . . . 3 . 1 . . . . . . 2 . . . . 1 . 3 . 4 Repair Stations 24 | . 1 . 2 . . . 2 . . . 1 1 2 . . 3 . 3 . . . . 3 . . . . . . 2 2 . 1 1 Recycling Units 43 | . 2 . 2 . . . . . . . . 3 1 6 . 5 . 4 . . . . 7 . 3 . . . . 4 . 3 . 3 Scanalyzers 15 | . . . 2 . . . 1 . . . 1 2 . . . . . 1 . . . . 2 . . . . . . 2 1 2 1 . Garrison Access 15 | . . . . . . . 1 . 1 . . 1 . . . 1 . 3 . . . . 4 . 1 . . . . 2 . . . 1 Total Hacks 841 | . 42 1 61 . 1 . 56 8 23 6 29 42 31 30 22 72 . 54 . . 17 . 99 . 15 1 . 15 . 66 57 23 28 42 Successful 516 | . 17 1 41 . 1 . 43 5 15 2 16 19 15 18 22 51 . 30 . . 17 . 55 . 7 1 . 15 . 38 34 14 19 20 Failed 322 | . 24 . 20 . . . 12 3 8 4 13 23 16 12 . 20 . 24 . . . . 44 . 8 . . . . 28 23 9 9 22 Catastrophic 38 | . 4 . 2 . . . . 1 1 2 . 6 . 2 . 1 . 2 . . . . 7 . 1 . . . . 4 4 . . 1 Database Lockouts 3 | . 1 . . . . . 1 . . . . . . . . 1 . . . . . . . . . . . . . . . . . . Manual 499 | . 30 . 43 . . . 36 4 21 3 18 26 22 26 . 53 . 27 1 . . . 61 . 9 . . . . 31 33 11 21 23 Terminals 461 | . 31 . 37 . . . 37 8 19 6 21 17 19 18 . 50 . 25 . . . . 60 . 2 . . . . 31 41 . 22 17 Fabricators 51 | . . . . . . . . . . . . 8 . . . 9 . 4 . . . . . . 6 . . . . 1 . 7 . 16 Repair Stations 84 | . 5 . 8 . . . 11 . . . 4 2 9 . . 3 . 10 . . . . 7 . . . . . . 11 10 . 1 3 Recycling Units 84 | . 6 . 7 . . . . . . . . 6 3 12 . 7 . 7 . . . . 9 . 6 . . . . 10 . 7 . 4 Scanalyzers 70 | . . . 9 . . . 5 . . . 4 8 . . . . . 1 . . . . 16 . . . . . . 7 6 9 5 . Garrison Access 34 | . . . . . . . 3 . 4 . . 1 . . . 3 . 7 . . . . 7 . 1 . . . . 6 . . . 2 Terminal Hacks 157 | . 11 1 5 . 1 . 10 3 2 2 1 1 3 2 22 17 . 7 . . 17 . 6 . . 1 . 15 . 8 15 . 6 1 Record 36 | . . . . . 1 . . . . . . . . . 15 . . . . . 5 . . . . . . 14 . 1 . . . . Part Schematic 10 | . . . 1 . . . . . . . . . . . . 2 . . . . 4 . . . . . . . . . 3 . . . Robot Schematic 3 | . 1 . . . . . . . . . . . . . . 2 . . . . . . . . . . . . . . . . . . Robot Analysis 36 | . 9 . 2 . . . 6 . . . . . 1 1 7 3 . . . . 4 . 1 . . . . . . . 1 . 1 . Prototype ID Bank 10 | . 1 . . . . . 2 . . . . 1 . . . . . . . . 4 . 1 . . . . . . . 1 . . . Open Door 8 | . . 1 . . . . . 1 . 1 . . 1 . . 1 . . . . . . . . . 1 . 1 . . 1 . . . Branch Access Points 1 | . . . . . . . . . . . . . . . . . . 1 . . . . . . . . . . . . . . . . Emergency Access Points 4 | . . . . . . . . 1 . 1 . . . . . 1 . . . . . . . . . . . . . . . . 1 . Terminal Index 8 | . . . 1 . . . 1 . 1 . 1 . . . . 1 . 1 . . . . . . . . . . . . . . 1 1 Repair Station Index 2 | . . . . . . . . . . . . . . . . 1 . . . . . . . . . . . . . 1 . . . . Recycling Unit Index 2 | . . . . . . . . . . . . . . . . . . 1 . . . . 1 . . . . . . . . . . . Garrison Index 2 | . . . . . . . . . . . . . . 1 . . . . . . . . . . . . . . . . . . 1 . Alert Level 2 | . . . . . . . . . . . . . . . . . . . . . . . . . . . . . . 2 . . . . Unreport Threat 7 | . . . 1 . . . . . 1 . . . 1 . . 2 . 1 . . . . . . . . . . . 1 . . . . Locate Traps 2 | . . . . . . . . . . . . . . . . . . . . . . . 1 . . . . . . . 1 . . . Reprogram Traps 4 | . . . . . . . 1 . . . . . . . . . . . . . . . . . . . . . . . 3 . . . Dispatch Records 1 | . . . . . . . . . . . . . . . . 1 . . . . . . . . . . . . . . . . . . Recall Investigation 5 | . . . . . . . . . . . . . . . . 3 . . . . . . . . . . . . . 2 . . . . Recall Extermination 2 | . . . . . . . . . . . . . . . . . . . . . . . 1 . . . . . . . 1 . . . Recall Reinforcements 3 | . . . . . . . . . . . . . . . . . . 2 . . . . . . . . . . . . 1 . . . Zone Layout 6 | . . . . . . . . . . . . . . . . . . 1 . . . . 1 . . . . . . 1 1 . 2 . Patrol Navigation 1 | . . . . . . . . 1 . . . . . . . . . . . . . . . . . . . . . . . . . . Protovariant Controls 2 | . . . . . . . . . . . . . . . . . . . . . . . . . . . . . . . 2 . . . Fabricator Hacks 16 | . . . . . . . . . . . . 1 . . . 4 . 1 . . . . . . 2 . . . . . . . . 8 Load Schematic 8 | . . . . . . . . . . . . . . . . 2 . 1 . . . . . . 1 . . . . . . . . 4 Build 8 | . . . . . . . . . . . . 1 . . . 2 . . . . . . . . 1 . . . . . . . . 4 Repair Station Hacks 50 | . 4 . 8 . . . 10 . . . 2 . 4 . . . . 8 . . . . 4 . . . . . . 3 6 . . 1 Scan Component 26 | . 2 . 4 . . . 5 . . . 1 . 2 . . . . 4 . . . . 2 . . . . . . 2 3 . . 1 Repair 24 | . 2 . 4 . . . 5 . . . 1 . 2 . . . . 4 . . . . 2 . . . . . . 1 3 . . . Recycling Unit Hacks 2 | . . . . . . . . . . . . . . . . . . . . . . . . . . . . . . 1 . 1 . . Retrieve Components 2 | . . . . . . . . . . . . . . . . . . . . . . . . . . . . . . 1 . 1 . . Scanalyzer 48 | . . . 7 . . . 4 . . . 4 6 . . . . . . . . . . 9 . . . . . . 6 3 5 4 . Insert Component 24 | . . . 3 . . . 2 . . . 2 3 . . . . . . . . . . 4 . . . . . . 3 2 3 2 . Analyze 24 | . . . 4 . . . 2 . . . 2 3 . . . . . . . . . . 5 . . . . . . 3 1 2 2 . Garrison Access Hacks 12 | . . . . . . . 1 . 1 . . 1 . . . . . 3 . . . . 4 . 1 . . . . 1 . . . . Unlock Access 2 | . . . . . . . 1 . 1 . . . . . . . . . . . . . . . . . . . . . . . . . Seal Access 10 | . . . . . . . . . . . . 1 . . . . . 3 . . . . 4 . 1 . . . . 1 . . . . Unauthorized Hacks 231 | . 2 . 21 . . . 18 2 12 . 9 10 8 16 . 30 . 11 . . . . 32 . 4 . . . . 19 10 8 9 10 Terminals 143 | . 1 . 15 . . . 15 2 10 . 9 6 7 9 . 17 . 5 . . . . 21 . . . . . . 5 7 . 7 7 Assimilate 10 | . . . 1 . . . 1 . . . 1 1 1 . . 1 . . . . . . 2 . . . . . . . . . 1 1 Botnet 73 | . 1 . 7 . . . 8 2 4 . 4 2 2 4 . 7 . 5 . . . . 10 . . . . . . 4 5 . 5 3 Disrupt 5 | . . . . . . . . . . . . . . . . . . . . . . . 2 . . . . . . . 1 . . 2 Operators 10 | . . . 1 . . . 1 . 1 . 1 1 . . . . . . . . . . 1 . . . . . . 1 1 . 1 1 Skim 45 | . . . 6 . . . 5 . 5 . 3 2 4 5 . 9 . . . . . . 6 . . . . . . . . . . . Fabricators 9 | . . . . . . . . . . . . 1 . . . 4 . . . . . . . . 2 . . . . . . 2 . . Report 2 | . . . . . . . . . . . . . . . . 1 . . . . . . . . 1 . . . . . . . . . Prioritize 5 | . . . . . . . . . . . . 1 . . . 2 . . . . . . . . 1 . . . . . . 1 . . Liberate 2 | . . . . . . . . . . . . . . . . 1 . . . . . . . . . . . . . . . 1 . . Repair Stations 12 | . . . . . . . . . . . . 1 . . . 3 . 2 . . . . 2 . . . . . . 1 2 . 1 . Mechanics 1 | . . . . . . . . . . . . . . . . . . . . . . . . . . . . . . . 1 . . . Patch 11 | . . . . . . . . . . . . 1 . . . 3 . 2 . . . . 2 . . . . . . 1 1 . 1 . Recycling Units 52 | . 1 . 4 . . . . . . . . 2 1 7 . 6 . 3 . . . . 8 . 2 . . . . 9 . 6 . 3 Reject 3 | . . . . . . . . . . . . . . . . . . . . . . . . . . . . . . 2 . 1 . . Recyclers 8 | . . . 1 . . . . . . . . 1 1 1 . 1 . . . . . . 1 . . . . . . 1 . 1 . . Mask 5 | . . . 1 . . . . . . . . 1 . . . . . . . . . . . . . . . . . 2 . 1 . . Tunnel 9 | . 1 . 2 . . . . . . . . . . 6 . . . . . . . . . . . . . . . . . . . . Fedlink 24 | . . . . . . . . . . . . . . . . 5 . 3 . . . . 7 . 2 . . . . 4 . 2 . 1 Scraphulk 3 | . . . . . . . . . . . . . . . . . . . . . . . . . . . . . . . . 1 . 2 Scanalyzers 6 | . . . 2 . . . 1 . . . . . . . . . . 1 . . . . . . . . . . . . 1 . 1 . Researchers 2 | . . . . . . . . . . . . . . . . . . . . . . . . . . . . . . . 1 . 1 . Extract 4 | . . . 2 . . . 1 . . . . . . . . . . 1 . . . . . . . . . . . . . . . . Garrison Access 9 | . . . . . . . 2 . 2 . . . . . . . . . . . . . 1 . . . . . . 4 . . . . Redirect 1 | . . . . . . . . . . . . . . . . . . . . . . . . . . . . . . 1 . . . . Reprogram 3 | . . . . . . . 1 . 1 . . . . . . . . . . . . . . . . . . . . 1 . . . . Intercept 4 | . . . . . . . 1 . 1 . . . . . . . . . . . . . 1 . . . . . . 1 . . . . Watchers 1 | . . . . . . . . . . . . . . . . . . . . . . . . . . . . . . 1 . . . . Data Cores Recovered 2 | . . . . . . . . . . . . . 1 . . . . . . . . . 1 . . . . . . . . . . . Used . | . . . . . . . . . . . . . . . . . . . . . . . . . . . . . . . . . . . Hacking Detections 176 | . 10 . 13 . . . 14 3 5 2 6 15 8 5 . 15 . 15 . . . . 20 . 4 . . . . 12 10 4 3 12 Full Trace Events 37 | . 6 . 1 . . . 4 . . 1 2 5 . 1 . 3 . 6 . . . . 1 . 2 . . . . . 1 . . 4 Feedback Events 2 | . 1 . . . . . . . . . . 1 . . . . . . . . . . . . . . . . . . . . . . Corruption 2 | . 1 . . . . . . . . . . 1 . . . . . . . . . . . . . . . . . . . . . . Feedback Blocked . | . . . . . . . . . . . . . . . . . . . . . . . . . . . . . . . . . . . Robot Schematics Acquired 5 | . 1 . . . . . . . . . . . . . . 2 . . . . . . . . . . . . . . . . 2 . Robots Built 13 | . . . . . . . . . . . . 3 . . . 4 . . . . . . . . 2 . . . . . . . . 4 Authchips . | . . . . . . . . . . . . . . . . . . . . . . . . . . . . . . . . . . . Time 294 | . . . . . . . . . . . . 67 . . . 75 . . . . . . . . 84 . . . . . . . . 68 Total Robot Build Rating 76 | . . . . . . . . . . . . 12 . . . 20 . . . . . . . . 12 . . . . . . . . 32 Part Schematics Acquired 46 | . . . 12 . . . 3 . . . 2 2 . . . 2 . 2 . . 4 . 2 . . . . . . 3 7 2 5 . Parts Built 5 | . . . . . . . . . . . . . . . . . . . . . . . . . . . . . . . . . . 5 Authchips . | . . . . . . . . . . . . . . . . . . . . . . . . . . . . . . . . . . . Time 159 | . . . . . . . . . . . . . . . . . . . . . . . . . . . . . . . . . . 159 Total Part Build Rating 41 | . . . . . . . . . . . . . . . . . . . . . . . . . . . . . . . . . . 41 Parts Repaired 23 | . 2 . 4 . . . 5 . . . 1 . 2 . . . . 4 . . . . 2 . . . . . . 1 2 . . . Time 1095 | . 52 . 179 . . . 229 . . . 50 . 88 . . . . 252 . . . . 106 . . . . . . 37 102 . . . Parts Recycled . | . . . . . . . . . . . . . . . . . . . . . . . . . . . . . . . . . . . Recycled Matter . | . . . . . . . . . . . . . . . . . . . . . . . . . . . . . . . . . . . Retrieved Matter . | . . . . . . . . . . . . . . . . . . . . . . . . . . . . . . . . . . . Retrieved Components 2 | . . . . . . . . . . . . . . . . . . . . . . . . . . . . . . . . 2 . . Parts Scanalyzed 20 | . . . 3 . . . 2 . . . 2 3 . . . . . . . . . . 2 . . . . . . 3 1 3 1 . Part Schematics Acquired 19 | . . . 3 . . . 2 . . . 2 2 . . . . . . . . . . 2 . . . . . . 3 1 2 2 . Parts Damaged 3 | . . . . . . . . . . . . . . . . . . . . . . . 1 . . . . . . 1 . 1 . . Bothacking | -11 -10 -10 -9 -9 -9 -8 -8 -8 -8 -8 -8 -7 -7 -7 -7 -5 -5 -5 -5 -5 -5 -4 -4 -4 -4 -4 -4 -4 -3 -3 -3 -2 -2 -2 ------------ Run | Yrd Mat Min Mat Min Exi Min Mat Gar Mat Gar Mat Fac Sto Rec Scr Fac Was Fac Upp Upp Zhi Pro Fac Was Fac Upp Upp War Pro Res Tes Res Qua Frg Used RIF Installer . | . . . . . . . . . . . . . . . . . . . . . . . . . . . . . . . . . . . Robots Hacked . | . . . . . . . . . . . . . . . . . . . . . . . . . . . . . . . . . . . Non-combat . | . . . . . . . . . . . . . . . . . . . . . . . . . . . . . . . . . . . Combat . | . . . . . . . . . . . . . . . . . . . . . . . . . . . . . . . . . . . Robot Hacks Applied . | . . . . . . . . . . . . . . . . . . . . . . . . . . . . . . . . . . . Relay Couplers Released 22 | . . . . . . . . 13 . 5 . . . . . 1 . . . . . . 2 . . . . . . . 1 . . . Machine Destruction 22 | . . . . . . . . 13 . 5 . . . . . 1 . . . . . . 2 . . . . . . . 1 . . . Fabnet Peak Effective % . | . . . . . . . . . . . . . . . . . . . . . . . . . . . . . . . . . . . Robots Rewired 24 | . . . . . . . . 11 . 3 . . . . . 1 . . . . . . . . . . 1 5 2 . 1 . . . Allies Hacked 5 | . . . . . . . . . . . . . . . . 3 . 1 . . . . . . . . . . . . . 1 . . Hacks Repelled 2 | . . . . . . . . . . . . . . . . . . . . . . . . . . . . . . 1 . . . 1 Allies | -11 -10 -10 -9 -9 -9 -8 -8 -8 -8 -8 -8 -7 -7 -7 -7 -5 -5 -5 -5 -5 -5 -4 -4 -4 -4 -4 -4 -4 -3 -3 -3 -2 -2 -2 -------- Run | Yrd Mat Min Mat Min Exi Min Mat Gar Mat Gar Mat Fac Sto Rec Scr Fac Was Fac Upp Upp Zhi Pro Fac Was Fac Upp Upp War Pro Res Tes Res Qua Frg Total Allies 114 | . . . . 3 . . 3 12 2 4 1 4 11 . 5 6 19 . . . . . 1 19 2 . 1 5 2 2 1 3 1 7 Largest Group 19 | . . . . 3 3 2 2 8 3 3 1 4 11 . 5 6 18 11 . . . . 1 19 19 11 11 12 2 2 1 2 1 6 Highest-Rated Group 684 | . . . . 40 40 24 32 114 79 73 24 100 183 . 235 276 653 476 . . . . 45 684 684 465 465 553 84 112 164 139 10 398 Highest-Rated Ally 164 | . . . . 16 16 16 16 31 31 25 24 30 29 . 47 54 50 50 . . . . 45 50 54 54 54 64 42 56 164 139 10 139 Initial Warlord ECA Mod 113 | . . . . . . . . . 11 11 19 18 18 18 18 . . . . . . . . . . . . . . . . . . . Total Orders 23 | . . . . . . . 2 1 . 2 . 2 2 . . . . . . . . . 3 . . . . 10 . . . . . 1 STAY 14 | . . . . . . . 1 1 . 1 . 1 1 . . . . . . . . . 1 . . . . 7 . . . . . 1 FOLLOW 9 | . . . . . . . 1 . . 1 . 1 1 . . . . . . . . . 2 . . . . 3 . . . . . . Ally Attacks 954 | . . . . 2 . 12 35 52 26 41 2 20 110 . . 103 56 68 . . . . . . 138 10 63 85 4 29 7 26 . 65 Total Damage 26641 | . . . . 26 . 121 405 724 468 757 13 765 1439 . . 2868 2989 2161 . . . . . . 4231 187 1755 2219 182 811 624 1576 . 2320 Kills 159 | . . . . 2 . 4 7 4 4 11 . 6 12 . . 19 8 17 . . . . . . 24 1 7 12 . 4 5 1 . 11 Allies Corrupted 2 | . . . . . . . . . . . . . . . . 1 . . . . . . . . . . 1 . . . . . . . Allies Melted 4 | . . . . . . . . 1 . . . 1 . . . . . 1 . . . . . . . . . 1 . . . . . . Intel | -11 -10 -10 -9 -9 -9 -8 -8 -8 -8 -8 -8 -7 -7 -7 -7 -5 -5 -5 -5 -5 -5 -4 -4 -4 -4 -4 -4 -4 -3 -3 -3 -2 -2 -2 ------- Run | Yrd Mat Min Mat Min Exi Min Mat Gar Mat Gar Mat Fac Sto Rec Scr Fac Was Fac Upp Upp Zhi Pro Fac Was Fac Upp Upp War Pro Res Tes Res Qua Frg Active Infowar (turns) 5414 | 58 205 . . . . . . . . . . 617 . . . . . . 450 446 148 245 534 238 89 171 596 183 . 319 . 98 . 1017 Optics 1553 | . . . . . . . . . . . . 535 . . . . . . . . . . . . . . . 1 . . . . . 1017 IFF 3655 | . . . . . . . . . . . . 556 . . . . . . 450 446 148 245 534 238 89 171 596 182 . . . . . . Terrain 361 | 58 205 . . . . . . . . . . . . . . . . . . . . . . . . . . . . . . 98 . . Decoding 319 | . . . . . . . . . . . . . . . . . . . . . . . . . . . . . . 319 . . . . Robot Analysis Total 36 | . 9 . 2 . . . 6 . . . . . 1 1 7 3 . . . . 4 . 1 . . . . . . . 1 . 1 . Derelict Logs Recovered 10 | . . 1 . . . . . . . . . . . . . . . . 2 2 . 1 . . . 2 2 . . . . . . . Drone Launches . | . . . . . . . . . . . . . . . . . . . . . . . . . . . . . . . . . . . Drone Recoveries . | . . . . . . . . . . . . . . . . . . . . . . . . . . . . . . . . . . . Decoded 0b10 Intel 9 | . . . . . . . . . . . . . . . . . . . . . . . . . . . . . . 9 . . . . Items 7 | . . . . . . . . . . . . . . . . . . . . . . . . . . . . . . 7 . . . . Machines 2 | . . . . . . . . . . . . . . . . . . . . . . . . . . . . . . 2 . . . . Exploration | -11 -10 -10 -9 -9 -9 -8 -8 -8 -8 -8 -8 -7 -7 -7 -7 -5 -5 -5 -5 -5 -5 -4 -4 -4 -4 -4 -4 -4 -3 -3 -3 -2 -2 -2 ------------- Run | Yrd Mat Min Mat Min Exi Min Mat Gar Mat Gar Mat Fac Sto Rec Scr Fac Was Fac Upp Upp Zhi Pro Fac Was Fac Upp Upp War Pro Res Tes Res Qua Frg Turns Passed 34980 | 172 1672 366 2639 555 411 628 2566 3630 582 2451 588 1050 486 602 1270 1878 364 971 500 446 162 275 1720 448 424 327 850 1417 537 1459 707 460 520 1847 Spaces Moved 35240 | 63 792 232 1162 322 256 361 1208 2027 269 1305 385 1785 625 694 1334 3196 385 1562 655 681 232 446 2721 563 511 375 1130 1621 882 2138 1130 887 863 2442 Core 144 | 2 . . . . . . . . . . 123 . . . . . . . . . . . . . . . . . . . . . . 19 Treads 8077 | 61 663 223 1162 322 256 361 1208 2027 269 1305 220 . . . . . . . . . . . . . . . . . . . . . . . Legs 138 | . 129 9 . . . . . . . . . . . . . . . . . . . . . . . . . . . . . . . . Wheels . | . . . . . . . . . . . . . . . . . . . . . . . . . . . . . . . . . . . Hover 25457 | . . . . . . . . . . . . 403 625 694 1334 3196 385 1562 655 681 232 446 2721 563 511 375 1130 1621 882 2138 1130 887 863 2423 Flight 1424 | . . . . . . . . . . . 42 1382 . . . . . . . . . . . . . . . . . . . . . . Fastest Speed 16 | 50 120 120 152 160 160 160 155 160 160 163 34 34 38 38 24 29 50 34 50 54 51 51 34 43 45 45 45 43 44 39 16 29 17 24 Average Speed 70 | 156 153 150 158 160 160 160 158 160 161 163 110 36 41 38 88 36 50 43 59 55 52 51 40 43 46 46 45 48 45 41 35 34 34 36 Slowest Speed 240 | 160 190 152 240 240 160 160 160 160 163 163 163 48 98 38 98 102 108 103 102 58 54 51 108 93 93 93 45 103 46 108 102 94 40 98 Overloaded Moves 335 | . . . . . . . . . . . . . . . 81 50 . . . . . . . . . . . . . . 135 24 31 14 Propulsion Burnouts 2 | . . . . . . . . . . . . . . . . . . . . . . . . . . . . . . . 1 . . 1 Robots Hopped 13 | . . . . . . . . . . . 1 12 . . . . . . . . . . . . . . . . . . . . . . Potential Cave-ins 13 | . . . . . . . . . . . . . . . . . . . 4 . . . . . . . . . . 3 . . . 6 Cave-ins Triggered . | . . . . . . . . . . . . . . . . . . . . . . . . . . . . . . . . . . . Exploration Rate (%) 65 | 4 96 45 87 66 61 78 82 99 31 93 55 38 60 93 75 54 95 45 68 76 60 63 66 95 11 53 96 88 70 38 91 27 69 55 Regions Visited 34 Branch Regions 18 Pre-discovered Areas 24 | . 1 . 4 . 1 . 1 . 2 . . . . 7 . 3 . . . . 3 . 1 . . . 1 . . . . . . . Known Exits Taken 16 | . . . 1 . . 1 1 . 1 . 1 1 1 1 . . . 1 1 . . 1 . . 1 . . . 1 1 1 1 . . Unknown Exits Taken 12 | 1 1 1 . 1 1 . . . . . . . . . 1 . . . . 1 1 . . . . 1 1 1 . . . . 1 . Scrap Searched 27 | . . 1 . 1 . 1 . . . . . . . . 5 . . . 4 4 . 3 . . . 1 4 . 3 . . . . . Spaces Dug 182 | . . . . . . . 7 . . . . 3 . 1 . 17 1 6 36 3 . 2 45 . 1 . 2 . 26 1 12 8 4 7 Terrain Destroyed 2157 | . 44 12 30 8 . . 70 125 64 133 95 12 43 25 . 221 185 126 105 8 . 32 153 12 44 39 73 136 75 49 129 34 11 64 Melee 8 | . . . . . . . . . . . . . . . . . . . . 2 . 1 2 . . . . . . . . . . 3 Projectile 626 | . . . . . . . . . 31 . 17 12 43 25 . 100 7 36 15 6 . 2 59 12 15 1 18 60 12 30 36 17 11 61 AOE 1522 | . 44 12 30 8 . . 70 125 33 133 78 . . . . 121 178 90 90 . . 29 92 . 29 38 55 76 63 18 93 17 . . Terrain Rammed . | . . . . . . . . . . . . . . . . . . . . . . . . . . . . . . . . . . . Walls Destroyed . | . . . . . . . . . . . . . . . . . . . . . . . . . . . . . . . . . . . Machines Disabled . | . . . . . . . . . . . . . . . . . . . . . . . . . . . . . . . . . . . Actions | -11 -10 -10 -9 -9 -9 -8 -8 -8 -8 -8 -8 -7 -7 -7 -7 -5 -5 -5 -5 -5 -5 -4 -4 -4 -4 -4 -4 -4 -3 -3 -3 -2 -2 -2 --------- Run | Yrd Mat Min Mat Min Exi Min Mat Gar Mat Gar Mat Fac Sto Rec Scr Fac Was Fac Upp Upp Zhi Pro Fac Was Fac Upp Upp War Pro Res Tes Res Qua Frg Total 41911 | 92 1002 245 1719 334 259 378 1626 2289 327 1528 514 2064 777 994 1421 3694 494 1784 740 742 267 476 3111 703 613 505 1419 2013 979 2484 1332 988 1012 2986 Wait 2924 | . 38 . 354 . . . 243 47 10 87 69 158 98 261 58 194 39 96 39 42 . 14 89 82 44 112 242 123 42 107 61 15 41 119 Move 35180 | 62 791 231 1161 321 255 360 1207 2025 268 1303 382 1760 624 693 1333 3196 384 1561 654 680 231 445 2721 562 510 374 1129 1620 881 2137 1129 886 862 2442 Hop 13 | . . . . . . . . . . . 1 12 . . . . . . . . . . . . . . . . . . . . . . Pick Up 330 | . 14 2 20 . 2 1 17 9 1 8 3 12 6 4 13 34 9 21 2 3 5 1 41 6 3 1 . 20 3 27 11 5 9 17 Fast Attach 245 | 7 6 2 7 . . . 5 5 . 2 6 14 4 3 1 8 2 11 1 3 7 . 19 3 1 . 3 37 7 17 15 9 17 23 Attach 176 | . . 1 3 . . . 5 . 2 4 4 6 3 2 3 18 6 11 10 1 2 . 25 4 . . . 7 3 11 11 5 5 24 Detach 116 | . 1 . 3 . . . . 5 . 1 2 2 2 . 1 6 3 7 8 . 4 . 10 3 . . . 12 3 8 4 6 3 22 Swap 453 | . 7 3 31 2 . 1 30 12 9 18 10 12 4 1 4 64 6 7 3 2 3 7 36 10 9 9 11 27 4 31 22 10 13 35 Drop 464 | . 9 4 29 . 2 2 22 16 1 12 17 19 4 7 8 37 5 16 1 3 9 1 38 7 8 1 6 43 8 41 16 15 23 34 Fire 1658 | 23 136 2 111 11 . 14 97 63 36 55 18 56 32 20 . 108 40 38 22 5 . 7 126 26 38 8 22 99 15 105 58 37 24 206 Melee 64 | . . . . . . . . . . . . . . . . . . . . 3 6 1 3 . . . . 1 . . . . 15 35 Ram 6 | . . . . . . . . . . . 2 . . . . . . 1 . . . . 3 . . . . . . . . . . . Kick . | . . . . . . . . . . . . . . . . . . . . . . . . . . . . . . . . . . . Crush . | . . . . . . . . . . . . . . . . . . . . . . . . . . . . . . . . . . . Escape Stasis 71 | . . . . . . . . . . . . 13 . . . 15 . 14 . . . . . . . . . . . . . . . 29 Rewire 210 | . . . . . . . . 107 . 38 . . . 3 . 14 . 1 . . . . . . . . 6 24 12 . 5 . . . Trap . | . . . . . . . . . . . . . . . . . . . . . . . . . . . . . . . . . . . Miscellaneous 1 | . . . . . . . . . . . . . . . . . . . . . . . . . . . . . 1 . . . . . Route ------- -11/Scrapyard -10/Materials (discovered 5 exits: *Mat x3 / *Min / [Sub]) -10/Mines -9/Materials (discovered 5 exits: *Mat x3 / *Min x2) -9/Mines (discovered 3 exits: *Mat x2 / *Exi) -9/Exiles -8/Mines -8/Materials (discovered 4 exits: *Fac x3 / Gar) -8/Garrison (discovered 3 exits: *Mat x3) -8/Materials (discovered 2 exits: *Fac / Gar) -8/Garrison (discovered 4 exits: *Mat x4) -8/Materials -7/Factory (discovered 3 exits: [*Fac] / *Sto / [*Low]) -7/Storage -7/Recycling -7/Scraptown -5/Factory (discovered 5 exits: *Fac / *Upp x2 / *Ext x2) -5/Waste -5/Factory (discovered 6 exits: *Fac x2 / *Upp x2 / Ext x2) -5/Upper Caves -5/Upper Caves (discovered 2 exits: Fac / *Zhi) -5/Zhirov -4/Proximity Caves -4/Factory (discovered 6 exits: *Res x4 / *Upp x2) -4/Waste -4/Factory (discovered 4 exits: *Res x3 / *Upp) -4/Upper Caves -4/Upper Caves (discovered 2 exits: *Res / *War) -4/Warlord -3/Proximity Caves -3/Research (discovered 4 exits: Res x2 / Arm / *Tes) -3/Testing -2/Research (discovered 2 exits: [*Acc] / *Qua) -2/Quarantine (discovered 3 exits: [*Acc] / [*Sec] / *Frg) -2/Protoforge History --------- Turn | Location | Event 13 | -11/Scrapyard | Discovered new exit (range 16) 173 | -11/Scrapyard | Entered Materials 307 | -10/Materials | Build established: Mutant 368 | -10/Materials | Discovered new exit (range 14) 450 | -10/Materials | Discovered new exit (range 16) 872 | -10/Materials | Discovered new exit (range 13) 1010 | -10/Materials | Discovered new exit (range 11) 1108 | -10/Materials | Repaired Assault Rifle 1135 | -10/Materials | Repaired Lgt. Assault Rifle 1612 | -10/Materials | Core integrity fell below 50% 1647 | -10/Materials | Discovered new exit (range 11) 1724 | -10/Materials | Central database locked down 1845 | -10/Materials | Entered Mines 1848 | -10/Mines | Met a Derelict who couldn't figure out how to use a Trap Extractor 2190 | -10/Mines | Learned 4 Materials zone layouts 2198 | -10/Mines | Discovered new exit (range 6) 2211 | -10/Mines | Entered Materials 2211 | -9/Materials | Evolved 2 slots: Weapon x2 2212 | -9/Materials | Identified exit to Mines 2212 | -9/Materials | Identified exit to Materials 2265 | -9/Materials | Repaired Lgt. Treads 2503 | -9/Materials | Build established: Gunner 2549 | -9/Materials | Discovered exit to Materials (range 5) 3271 | -9/Materials | Discovered exit to Mines (range 16) 3368 | -9/Materials | Repaired Imp. Assault Rifle 3680 | -9/Materials | Learned location of Mines (-9) 3688 | -9/Materials | Learned Storage emergency access door positions 3689 | -9/Materials | Loaded intel: 11 trap records 3696 | -9/Materials | Learned location of Recycling (-7) 4770 | -9/Materials | Repaired Imp. Assault Rifle 4822 | -9/Materials | Repaired Cld. Ion Engine 4850 | -9/Materials | Entered Mines 4851 | -9/Mines | A Derelict revealed a hidden shortcut to a safe place 4901 | -9/Mines | Assisted by bots powering up and referring to "LRC-V3" 5395 | -9/Mines | Deemed a non-threat by the Exiles lab entrance 5397 | -9/Mines | Discovered new exit (range 5) 5405 | -9/Mines | Entered Exiles 5405 | -9/Exiles | Accompanied by 3 allies 5453 | -9/Exiles | Met 8R-AWN 5477 | -9/Exiles | Met EX-HEX 5519 | -9/Exiles | Met EX-BIN 5541 | -9/Exiles | Met EX-DEC 5548 | -9/Exiles | Learned location of Zion (-7) 5804 | -9/Exiles | Discovered new exit (range 10) 5816 | -9/Exiles | Entered Mines 5816 | -8/Mines | Accompanied by 3 allies 6438 | -8/Mines | Discovered exit to Materials (range 3) 6444 | -8/Mines | Entered Materials 6444 | -8/Materials | Accompanied by 1 ally 6444 | -8/Materials | Evolved 2 slots: Propulsion x1, Utility x1 6540 | -8/Materials | Repaired Adv. Treads 6877 | -8/Materials | Discovered new exit (range 6) 7243 | -8/Materials | Build established: Scavenger-Gunner 7380 | -8/Materials | Discovered new exit (range 16) 7720 | -8/Materials | Build established: Tank 7919 | -8/Materials | Central database locked down 8055 | -8/Materials | Learned location of Extension (-5) 8110 | -8/Materials | Learned location of 1 exit from Extension 8194 | -8/Materials | Learned 4 Recycling zone layouts 8273 | -8/Materials | Repaired Imp. Assault Rifle 8304 | -8/Materials | Learned location of 1 exit from Lower Caves 8325 | -8/Materials | Repaired Imp. Assault Rifle 8378 | -8/Materials | Repaired Imp. Assault Rifle 8417 | -8/Materials | Repaired Hrd. Medium Armor Plating 8522 | -8/Materials | Discovered new exit (range 15) 8551 | -8/Materials | Identified exit to Garrison 8753 | -8/Materials | Destroyed 7 combat bots 8959 | -8/Materials | Garrison activated, responded to threat 9010 | -8/Materials | Entered Garrison 9010 | -8/Garrison | Accompanied by 2 allies 9129 | -8/Garrison | Phase Generator disabled 9312 | -8/Garrison | Triggered checkpoint 9476 | -8/Garrison | Garrison Relay disabled 9548 | -8/Garrison | Triggered checkpoint 9562 | -8/Garrison | Triggered checkpoint 9631 | -8/Garrison | Rescued a captive Derelict 9650 | -8/Garrison | Triggered checkpoint 9698 | -8/Garrison | Build established: Commander-Tank 9882 | -8/Garrison | Triggered checkpoint 9896 | -8/Garrison | Triggered checkpoint 9914 | -8/Garrison | Triggered checkpoint 10043 | -8/Garrison | Lost 4 allies 10092 | -8/Garrison | Triggered checkpoint 10122 | -8/Garrison | Garrison Relay disabled 10225 | -8/Garrison | Discovered new exit (range 9) 10296 | -8/Garrison | Garrison Relay disabled 10488 | -8/Garrison | Build established: Gunner 10555 | -8/Garrison | Discovered new exit (range 10) 10791 | -8/Garrison | Discovered new exit (range 12) 10808 | -8/Garrison | Triggered checkpoint 10860 | -8/Garrison | Triggered checkpoint 11200 | -8/Garrison | Triggered checkpoint 11220 | -8/Garrison | Build established: Commander-Gunner 11514 | -8/Garrison | Triggered checkpoint 12374 | -8/Garrison | Attempted to access garrison exit controls, blocked by remote lockdown 12640 | -8/Garrison | Entered Materials 12640 | -8/Materials | Accompanied by 3 allies 12922 | -8/Materials | Build established: Gunner 12968 | -8/Materials | Identified exit to Factory 13012 | -8/Materials | Learned Factory non-interactive machine intel 13040 | -8/Materials | First assault squad dispatched 13046 | -8/Materials | Learned location of 2 exits from Lower Caves 13071 | -8/Materials | Learned 8 Factory zone layouts 13091 | -8/Materials | Learned location of 1 exit from Recycling 13092 | -8/Materials | Learned Storage terminal intel 13094 | -8/Materials | Learned Factory emergency access door positions 13177 | -8/Materials | Garrison activated, responded to threat 13200 | -8/Materials | Identified exit to Garrison 13222 | -8/Materials | Entered Garrison 13222 | -8/Garrison | Accompanied by 2 allies 13292 | -8/Garrison | Triggered checkpoint 13350 | -8/Garrison | Triggered checkpoint 13524 | -8/Garrison | Triggered checkpoint 13576 | -8/Garrison | Discovered new exit (range 10) 13748 | -8/Garrison | Triggered checkpoint 13938 | -8/Garrison | Discovered new exit (range 10) 14004 | -8/Garrison | Triggered checkpoint 14035 | -8/Garrison | Garrison Relay disabled 14205 | -8/Garrison | Discovered new exit (range 13) 14210 | -8/Garrison | Triggered checkpoint 14275 | -8/Garrison | Discovered new exit (range 3) 14390 | -8/Garrison | Triggered checkpoint 14453 | -8/Garrison | Rescued a captive Derelict 14530 | -8/Garrison | Triggered checkpoint 14570 | -8/Garrison | Triggered checkpoint 14932 | -8/Garrison | Triggered checkpoint 14948 | -8/Garrison | Build established: Scavenger-Gunner 15316 | -8/Garrison | Phase Generator disabled 15495 | -8/Garrison | Attempted to access garrison exit controls, blocked by remote lockdown 15673 | -8/Garrison | Entered Materials 15673 | -8/Materials | Accompanied by 1 ally 15782 | -8/Materials | Repaired Magnetic Acceleration Cannon 16073 | -8/Materials | First assault squad dispatched 16126 | -8/Materials | Build established: Gunner 16132 | -8/Materials | Core integrity fell below 50% 16163 | -8/Materials | Destroyed 10 combat bots 16193 | -8/Materials | Lost 9 parts (1p3n5w) 16259 | -8/Materials | Discovered exit to Factory (range 4) 16261 | -8/Materials | Entered Factory 16261 | -7/Factory | Evolved 2 slots: Propulsion x2 16262 | -7/Factory | Identified exit to Storage 16265 | -7/Factory | Loaded intel: 190 non-interactive machine locations 16885 | -7/Factory | Discovered new exit (range 7) 16900 | -7/Factory | Build established: Mutant 16983 | -7/Factory | Fabricated L-41 Fighter? 17061 | -7/Factory | First assault squad dispatched 17091 | -7/Factory | Discovered new exit (range 14) 17209 | -7/Factory | P-60 Hacker assimilated allied Technician 4a 17311 | -7/Factory | Entered Storage 17312 | -7/Storage | Identified exit to Recycling 17314 | -7/Storage | Loaded intel: 12 terminal locations 17383 | -7/Storage | Assisted by bots powering up and referring to "LRC-V3" 17497 | -7/Storage | Lost 3 allies 17575 | -7/Storage | Used back door to open Recycling access 17602 | -7/Storage | Repaired Recoil Stabilizer 17655 | -7/Storage | Repaired Imp. Gravmag System 17682 | -7/Storage | Build established: Commander-Gunner 17711 | -7/Storage | First assault squad dispatched 17797 | -7/Storage | Entered Recycling 17798 | -7/Recycling | Identified exit to Scraptown 17818 | -7/Recycling | Lost 6 allies 18020 | -7/Recycling | Learned location of 1 exit from Upper Caves 18158 | -7/Recycling | Learned Factory emergency access door positions 18243 | -7/Recycling | Build established: Gunner 18250 | -7/Recycling | Learned Factory garrison access intel 18300 | -7/Recycling | Learned location of Upper Caves (-4) 18358 | -7/Recycling | Learned 2 Hub_04(d) zone layouts 18390 | -7/Recycling | Scanned before Scraplab entrance 18396 | -7/Recycling | Entered Scraplab 18399 | -7/Recycling | Entered Scraptown 18399 | -7/Scraptown | System corruption cleaned by C-Scrubber 18570 | -7/Scraptown | Received an X-ray algorithm 18590 | -7/Scraptown | Visited UFD Registry 18590 | -7/Scraptown | Registered with UFD as "Technomaster" 18820 | -7/Scraptown | Visited Observation Area 18828 | -7/Scraptown | Visited Fellowship of the Rings 18845 | -7/Scraptown | Visited Cyclists 18860 | -7/Scraptown | Visited CR-KLE's Repair Center 18869 | -7/Scraptown | CR-KLE repaired 10 parts 18934 | -7/Scraptown | Visited A0-MCA Data Center 18948 | -7/Scraptown | Given a B rating by A0-MCA 18953 | -7/Scraptown | Found A0-MCA's Component Scanner 18984 | -7/Scraptown | Visited Curators Association 19030 | -7/Scraptown | Visited Scrapoid Pod Storage 19037 | -7/Scraptown | Found Scrapoid Pod 19281 | -7/Scraptown | Visited DA-N13 Charitable Foundation 19291 | -7/Scraptown | Found DCF Scrap (30 items) 19334 | -7/Scraptown | Scrapoid Pod released 07S05-D (x5) 19388 | -7/Scraptown | Visited Supply Room 19405 | -7/Scraptown | Visited Analyses Database 19427 | -7/Scraptown | Visited Derelict Rescue Squad 19442 | -7/Scraptown | Found DRS Beacon 19499 | -7/Scraptown | Discovered new exit (range 3) 19623 | -7/Scraptown | Met Optimus 19623 | -7/Scraptown | Accepted into 0bPrime 19669 | -7/Scraptown | Entered Factory 19669 | -5/Factory | Accompanied by 5 allies 19669 | -5/Factory | Evolved 4 slots: Propulsion x2, Utility x2 19670 | -5/Factory | Identified exit to Upper Caves 19670 | -5/Factory | Identified exit to Extension 19672 | -5/Factory | Loaded intel: 3 garrison access locations 19676 | -5/Factory | Discovered new exit (range 15) 20065 | -5/Factory | Spotted B-75 Beast 20231 | -5/Factory | P-70 Sage assimilated allied 07S05-D 20273 | -5/Factory | Lost 3 parts (3n) 20489 | -5/Factory | Loaded intel: 8 recycling unit locations 20534 | -5/Factory | Central database locked down 20583 | -5/Factory | Learned Factory emergency access door positions 20627 | -5/Factory | Learned Extension garrison access intel 20659 | -5/Factory | Learned location of 1 exit from Extension 20683 | -5/Factory | Learned location of 1 exit from Armory 20699 | -5/Factory | Learned location of 1 exit from Research 20704 | -5/Factory | Learned 4 Proximity Caves zone layouts 20705 | -5/Factory | Learned location of 1 exit from Upper Caves 20711 | -5/Factory | Learned 2 Armory zone layouts 20744 | -5/Factory | Allied Derelicts emerged from ambush trap array 20752 | -5/Factory | Learned location of Quarantine (-2) 20767 | -5/Factory | Destroyed 8 combat bots 20869 | -5/Factory | First assault squad dispatched 20874 | -5/Factory | Build established: Hacker-Gunner 21204 | -5/Factory | Noticed UFD Elites at a Recycling Unit 21252 | -5/Factory | Learned location of Protoforge (-2) 21373 | -5/Factory | Garrison activated, responded to threat 21475 | -5/Factory | Lost 3 parts (3n) 21497 | -5/Factory | Cargo convoy interrupted 21499 | -5/Factory | Fabricated Y-54 Guardian (x2) 21510 | -5/Factory | High security lockdown imminent 21512 | -5/Factory | Fabricated P-70 Sage (x2) 21547 | -5/Factory | Manually triggered Chute Trap 21547 | -5/Factory | Sucked down chute 21547 | -5/Factory | Entered Waste 21548 | -5/Waste | Met a frightened Derelict 21563 | -5/Waste | Lost 5 parts (2n2u1w) 21563 | -5/Waste | Spotted C-40 Crusher 21575 | -5/Waste | Spotted C-40 Crusher 21595 | -5/Waste | Spotted C-40 Crusher 21621 | -5/Waste | Destroyed C-40 Crusher 21660 | -5/Waste | Destroyed C-40 Crusher 21689 | -5/Waste | Spotted C-40 Crusher 21719 | -5/Waste | Destroyed C-40 Crusher 21732 | -5/Waste | Warlord forces began an assault 21738 | -5/Waste | Allies destroyed C-40 Crusher 21809 | -5/Waste | Discovered new exit (range 13) 21809 | -5/Waste | Spotted C-40 Crusher 21809 | -5/Waste | Spotted C-40 Crusher 21818 | -5/Waste | Destroyed C-40 Crusher 21829 | -5/Waste | Allies destroyed C-40 Crusher 21855 | -5/Waste | Lost 7 allies 21892 | -5/Waste | Build established: Mutant 21911 | -5/Waste | Entered Factory 21911 | -5/Factory | Accompanied by 11 allies 21942 | -5/Factory | Discovered new exit (range 8) 22118 | -5/Factory | Repaired Hpw. Tractor Beam? 22172 | -5/Factory | Repaired F-cell Engine? 22184 | -5/Factory | Repaired Hyp. Gauss Cannon 22211 | -5/Factory | First assault squad dispatched 22273 | -5/Factory | Repaired Corrupted Antigrav System 22556 | -5/Factory | Discovered new exit (range 13) 22661 | -5/Factory | Loaded intel: 7 recycling unit locations 22836 | -5/Factory | Lost 4 parts (1p3n) 22882 | -5/Factory | Entered Upper Caves 22883 | -5/Upper Caves | Identified exit to Upper Caves 22889 | -5/Upper Caves | Core integrity fell below 50% 22962 | -5/Upper Caves | Build established: Hacker-Mutant 22980 | -5/Upper Caves | Attracted the attention of an 0b10 checkpoint 23023 | -5/Upper Caves | Lost 4 parts (2n1u1w) 23174 | -5/Upper Caves | Encountered a Warlord checkpoint 23230 | -5/Upper Caves | Acquired the password to a Derelict Tinkerer's latest research 23236 | -5/Upper Caves | Found Prototype Special Weapon 23261 | -5/Upper Caves | Lost 3 allies 23275 | -5/Upper Caves | Learned Factory terminal intel 23377 | -5/Upper Caves | Learned Factory garrison access intel 23382 | -5/Upper Caves | Entered another Upper Caves area 23383 | -5/Upper Caves | Identified exit to Factory 23651 | -5/Upper Caves | Learned Factory trap positions 23652 | -5/Upper Caves | Learned Factory emergency access door positions 23825 | -5/Upper Caves | Discovered new exit (range 6) 23828 | -5/Upper Caves | Entered Zhirov 23828 | -5/Zhirov | Discovered new exit (range 3) 23841 | -5/Zhirov | Met Zhirov 23845 | -5/Zhirov | Identified Molecular Deconstructor 23864 | -5/Zhirov | Found Alien Artifact 23864 | -5/Zhirov | Identified Integrated Dissipator 23864 | -5/Zhirov | Installed Integrated Dissipator, increased core heat dissipation (+20) 23924 | -5/Zhirov | Found Alien Artifact 23938 | -5/Zhirov | Learned location of Testing (-3) 23941 | -5/Zhirov | Zhirov requested help retrieving the SGEMP Prototype 23990 | -5/Zhirov | Entered Proximity Caves 24020 | -4/Proximity Caves | Attracted the attention of an 0b10 checkpoint 24244 | -4/Proximity Caves | Build established: Skirmisher 24252 | -4/Proximity Caves | Discovered exit to Factory (range 14) 24265 | -4/Proximity Caves | Entered Factory 24265 | -4/Factory | Evolved 2 slots: Power x1, Utility x1 24266 | -4/Factory | Loaded intel: 89 trap records 24268 | -4/Factory | Loaded intel: 26 terminal locations 24269 | -4/Factory | Loaded intel: 4 garrison access locations 24375 | -4/Factory | Loaded intel: 8 recycling unit locations 24568 | -4/Factory | Build established: Hacker-Gunner 24680 | -4/Factory | Discovered new exit (range 16) 24703 | -4/Factory | Discovered new exit (range 6) 24894 | -4/Factory | Learned 2 Armory zone layouts 24932 | -4/Factory | Learned location of 1 exit from Research 24932 | -4/Factory | Build established: Gunner 24961 | -4/Factory | Learned Factory emergency access door positions 24980 | -4/Factory | Learned Factory emergency access door positions 24989 | -4/Factory | Learned location of Warlord (-4) 24990 | -4/Factory | Identified exit to Research 24992 | -4/Factory | Identified exit to Upper Caves 25002 | -4/Factory | Learned Testing security intel 25158 | -4/Factory | Spotted B-86 Titan 25265 | -4/Factory | Search patrols dispatched 25271 | -4/Factory | Found Prototype Hackware 25462 | -4/Factory | Lost 8 parts (1p3n1u3w) 25515 | -4/Factory | Search patrols dispatched 25558 | -4/Factory | Identified Exp. Hacking Suite 25619 | -4/Factory | Repaired Gravmag Array 25700 | -4/Factory | Repaired Adv. Recoil Stabilizer? 25765 | -4/Factory | Search patrols dispatched 25798 | -4/Factory | Build established: Hacker-Gunner 25985 | -4/Factory | Sucked down chute 25985 | -4/Factory | Entered Waste 25992 | -4/Waste | Spotted C-40 Crusher 25993 | -4/Waste | Spotted C-40 Crusher 26011 | -4/Waste | Spotted C-40 Crusher 26019 | -4/Waste | Spotted C-40 Crusher 26029 | -4/Waste | Destroyed C-40 Crusher 26036 | -4/Waste | Destroyed C-40 Crusher 26060 | -4/Waste | Destroyed C-40 Crusher 26077 | -4/Waste | Destroyed C-40 Crusher 26088 | -4/Waste | Spotted C-40 Crusher 26103 | -4/Waste | Destroyed C-40 Crusher 26108 | -4/Waste | Spotted C-40 Crusher 26128 | -4/Waste | Destroyed C-40 Crusher 26147 | -4/Waste | Build established: Gunner 26173 | -4/Waste | Warlord forces began an assault 26315 | -4/Waste | Found Prototype Device 26315 | -4/Waste | Identified Adv. Particle Accelerator 26327 | -4/Waste | Discovered new exit (range 10) 26433 | -4/Waste | Entered Factory 26433 | -4/Factory | Accompanied by 19 allies 26612 | -4/Factory | Lost 5 allies 26656 | -4/Factory | Loaded intel: 8 recycling unit locations 26656 | -4/Factory | Discovered exit to Research (range 16) 26683 | -4/Factory | First assault squad dispatched 26697 | -4/Factory | Discovered exit to Upper Caves (range 15) 26756 | -4/Factory | High security lockdown imminent 26786 | -4/Factory | Destroyed 7 combat bots 26836 | -4/Factory | High security lockdown engaged 26848 | -4/Factory | Fabricated P-70 Sage? 26857 | -4/Factory | Entered Upper Caves 26857 | -4/Upper Caves | Accompanied by 11 allies 26891 | -4/Upper Caves | Learned 4 Research zone layouts 27032 | -4/Upper Caves | Discovered new exit (range 9) 27040 | -4/Upper Caves | Learned 12 Research zone layouts 27184 | -4/Upper Caves | Entered another Upper Caves area 27184 | -4/Upper Caves | Accompanied by 11 allies 27187 | -4/Upper Caves | Discovered exit to Research (range 6) 27194 | -4/Upper Caves | Learned Research stockpile data 27576 | -4/Upper Caves | Discovered new exit (range 16) 27663 | -4/Upper Caves | Attracted the attention of an 0b10 outpost 27713 | -4/Upper Caves | Lost 3 allies 28034 | -4/Upper Caves | Entered Warlord 28034 | -4/Warlord | Accompanied by 7 allies 28085 | -4/Warlord | Learned Testing emergency access door positions 28085 | -4/Warlord | Learned 4 Quarantine zone layouts 28085 | -4/Warlord | Learned Factory fabricator intel 28250 | -4/Warlord | Found Prototype Special Weapon 28252 | -4/Warlord | Found Prototype Special Weapon 28253 | -4/Warlord | Found Prototype Special Weapon 28255 | -4/Warlord | Found Prototype Special Weapon 28257 | -4/Warlord | Found Prototype Special Weapon 28262 | -4/Warlord | Found Prototype Special Weapon 28262 | -4/Warlord | Identified RU-N14's Throwing Claymores v3 (x6) 28302 | -4/Warlord | Warlord's base attacked by MAIN.C 28371 | -4/Warlord | Found Prototype Energy Gun 28371 | -4/Warlord | Identified Vortex Shotgun 28373 | -4/Warlord | Found Vortex Shotgun 28375 | -4/Warlord | Found Prototype Piercing Weapon 28377 | -4/Warlord | Found Prototype Piercing Weapon 28392 | -4/Warlord | Identified Vortex Lance (x2) 28404 | -4/Warlord | Found Prototype Hackware 28407 | -4/Warlord | Found Prototype Processor 28407 | -4/Warlord | Identified Spectral Analyzer 28411 | -4/Warlord | Found Prototype Device 28411 | -4/Warlord | Identified Exp. Focal Shield 28424 | -4/Warlord | Found Prototype Reactor 28447 | -4/Warlord | Build established: Commander-Gunner 28532 | -4/Warlord | Warlord forces counterattacked 28594 | -4/Warlord | Destroyed 18 combat bots 28656 | -4/Warlord | Spotted Striker 28691 | -4/Warlord | Spotted Executioner 28698 | -4/Warlord | Destroyed Executioner 28724 | -4/Warlord | Lost 20 allies 28730 | -4/Warlord | Lost 3 parts (1n2w) 28733 | -4/Warlord | P-70 Sage assimilated allied 34-NLP(g) 28736 | -4/Warlord | Destroyed 14 combat bots 28766 | -4/Warlord | Spotted B-90 Cyclops 28768 | -4/Warlord | Lost 3 allies 28779 | -4/Warlord | Allies destroyed B-90 Cyclops 28784 | -4/Warlord | Spotted B-86 Titan 28794 | -4/Warlord | Spotted Striker 28834 | -4/Warlord | Spotted Striker 28854 | -4/Warlord | Destroyed Striker 28885 | -4/Warlord | Spotted Executioner 28894 | -4/Warlord | Spotted Executioner 28902 | -4/Warlord | Core integrity fell below 50% 28977 | -4/Warlord | Warlord base infiltrated, sounded retreat 29026 | -4/Warlord | Spotted Executioner 29026 | -4/Warlord | Destroyed Executioner 29043 | -4/Warlord | Spotted Striker 29049 | -4/Warlord | Found Prototype Processor 29056 | -4/Warlord | Lost 3 allies 29064 | -4/Warlord | Destroyed Striker 29064 | -4/Warlord | Destroyed Striker 29093 | -4/Warlord | Destroyed 9 combat bots 29174 | -4/Warlord | Rebuked by Warlord 29176 | -4/Warlord | Discovered new exit (range 13) 29202 | -4/Warlord | Spotted Striker 29203 | -4/Warlord | Spotted Executioner 29203 | -4/Warlord | Spotted Striker 29224 | -4/Warlord | Destroyed 12 combat bots 29235 | -4/Warlord | Lost 4 allies 29245 | -4/Warlord | Identified Exp. Core Analyzer 29251 | -4/Warlord | Found Prototype Launcher 29253 | -4/Warlord | Found Prototype Processor 29253 | -4/Warlord | Identified Exp. Melee Analysis Suite 29304 | -4/Warlord | Found Prototype Device 29304 | -4/Warlord | Identified Exp. Thermal Shield 29320 | -4/Warlord | Spotted Executioner 29325 | -4/Warlord | Destroyed Executioner 29349 | -4/Warlord | Build established: Scavenger-Gunner 29384 | -4/Warlord | Found Exp. Targeting Computer 29388 | -4/Warlord | System corruption reached 10% 29417 | -4/Warlord | Spotted Striker 29418 | -4/Warlord | Spotted Striker 29423 | -4/Warlord | Destroyed Striker 29451 | -4/Warlord | Entered Proximity Caves 29481 | -3/Proximity Caves | Lost 17 allies 29537 | -3/Proximity Caves | Activated DRS Beacon 29562 | -3/Proximity Caves | Identified Chain Missile Launcher 29817 | -3/Proximity Caves | Spotted B-86 Titan 29847 | -3/Proximity Caves | Discovered exit to Research (range 14) 29921 | -3/Proximity Caves | Destroyed B-86 Titan 29988 | -3/Proximity Caves | Entered Research 29988 | -3/Research | Accompanied by 1 ally 29988 | -3/Research | Evolved 2 slots: Propulsion x1, Utility x1 29989 | -3/Research | Identified exit to Armory 29990 | -3/Research | Identified exit to Research 29990 | -3/Research | Identified exit to Testing 30010 | -3/Research | Identified Ghost Barrier 30049 | -3/Research | Repaired Enh. Hardcell Cannon 30242 | -3/Research | Found Prototype Processor 30242 | -3/Research | Identified Exp. Terrain Scan Processor 30332 | -3/Research | Identified Vortex Chain Reactor 30489 | -3/Research | Loaded intel: 5 recycling unit locations 30507 | -3/Research | Garrison activated, responded to threat 30689 | -3/Research | Spotted B-86 Titan 31015 | -3/Research | Build established: Hacker-Gunner 31238 | -3/Research | First assault squad dispatched 31439 | -3/Research | System corruption reached 10% 31447 | -3/Research | Entered Testing 31457 | -3/Testing | Found Prototype Protection 31457 | -3/Testing | Identified Lgt. Regenerative Plating 31566 | -3/Testing | Discovered exit to Research (range 9) 31738 | -3/Testing | Found Prototype Hackware 31738 | -3/Testing | Identified System Mapper 31757 | -3/Testing | Found Prototype Energy Cannon 31757 | -3/Testing | Identified Cld. Nova Cannon 31768 | -3/Testing | Spotted Striker 31801 | -3/Testing | Identified Transdimensional Reconstructor 31839 | -3/Testing | Garrison activated, responded to threat 31892 | -3/Testing | Found Prototype Device 31892 | -3/Testing | Identified Exp. Hardlight Generator 31947 | -3/Testing | First assault squad dispatched 31948 | -3/Testing | Repaired Antigrav Array 31987 | -3/Testing | Repaired Linear Accelerator 32005 | -3/Testing | Found Prototype Energy Cannon 32005 | -3/Testing | Identified Imp. Potential Cannon 32031 | -3/Testing | Rewired PX-C5R0CO9HIP 32055 | -3/Testing | High security lockdown imminent 32057 | -3/Testing | Destroyed *Baby boi 32071 | -3/Testing | Found Exp. Hacking Suite 32088 | -3/Testing | Lost 3 parts (2n1w) 32135 | -3/Testing | High security lockdown engaged 32154 | -3/Testing | Entered Research 32154 | -2/Research | Evolved 2 slots: Utility x2 32155 | -2/Research | Identified exit to Quarantine 32311 | -2/Research | Discovered new exit (range 2) 32404 | -2/Research | First assault squad dispatched 32419 | -2/Research | Loaded intel: 5 recycling unit locations 32455 | -2/Research | Scraphulk reinforcements arrived? 32476 | -2/Research | Spotted B-90 Cyclops 32614 | -2/Research | Entered Quarantine 32773 | -2/Quarantine | Found Alien Artifact 32773 | -2/Quarantine | Identified Subatomic Replicator 32849 | -2/Quarantine | Build established: Wizard-Gunner 32851 | -2/Quarantine | Used Subatomic Replicator to replicate Com. Linear Accelerator 32864 | -2/Quarantine | First assault squad dispatched 32897 | -2/Quarantine | Found Alien Artifact 32897 | -2/Quarantine | Identified Phase Redirector 32931 | -2/Quarantine | Found Alien Slashing Weapon 32931 | -2/Quarantine | Identified Sigix Broadsword 32968 | -2/Quarantine | Found Alien Artifact 32968 | -2/Quarantine | Identified Phase Armor 33011 | -2/Quarantine | Found Alien Artifact 33016 | -2/Quarantine | Found Alien Artifact 33016 | -2/Quarantine | Identified Terrabomb (x2) 33016 | -2/Quarantine | Used Terrabomb 33026 | -2/Quarantine | Found Terrabomb 33026 | -2/Quarantine | Used Terrabomb 33058 | -2/Quarantine | Found Alien Impact Weapon 33058 | -2/Quarantine | Identified Core Stripper 33064 | -2/Quarantine | Discovered new exit (range 14) 33083 | -2/Quarantine | Spotted Fortress 33111 | -2/Quarantine | Discovered new exit (range 6) 33111 | -2/Quarantine | Discovered new exit (range 6) 33134 | -2/Quarantine | Entered Protoforge 33169 | -2/Protoforge | Spotted Hotshot 33169 | -2/Protoforge | Spotted Hotshot 33214 | -2/Protoforge | Spotted Hotshot 33215 | -2/Protoforge | Spotted Hotshot 33217 | -2/Protoforge | Superfortress began startup sequence 33220 | -2/Protoforge | Destroyed Hotshot 33243 | -2/Protoforge | Build established: Hacker-Mutant 33301 | -2/Protoforge | Spotted Hotshot 33302 | -2/Protoforge | Spotted Hotshot 33322 | -2/Protoforge | Spotted Overlord 33327 | -2/Protoforge | Spotted Hotshot 33336 | -2/Protoforge | Used Terrabomb 33336 | -2/Protoforge | Spotted EXE-6 33336 | -2/Protoforge | Spotted EXE-6 33384 | -2/Protoforge | Search patrols dispatched 33397 | -2/Protoforge | System corruption reached 10% 33431 | -2/Protoforge | Destroyed 7 combat bots 33436 | -2/Protoforge | UFD initiated attack on Protoforge 33436 | -2/Protoforge | Loaded intel: 3 recycling unit locations 33452 | -2/Protoforge | Scraphulk reinforcements arrived? 33462 | -2/Protoforge | Spotted Decapitator 33463 | -2/Protoforge | Spotted Decapitator 33469 | -2/Protoforge | Scraphulk reinforcements arrived? 33472 | -2/Protoforge | Optimus greeted in Protoforge 33472 | -2/Protoforge | Spotted EXE-6 33500 | -2/Protoforge | Lost 8 allies 33558 | -2/Protoforge | Fabricated Heavy Servo Lattice (x2) 33560 | -2/Protoforge | Fabricated Enh. Hardcell Cannon (x2) 33584 | -2/Protoforge | Fabricated S-43 Plague (x4) 33600 | -2/Protoforge | Met 7R-MNS 33603 | -2/Protoforge | Lost 3 parts (1p1n1w) 33659 | -2/Protoforge | Fabricated Graviton Cannon (x1) 33664 | -2/Protoforge | Lost 5 allies 33714 | -2/Protoforge | Found 0bPrime Scrap Suit 33734 | -2/Protoforge | Spotted Striker 33736 | -2/Protoforge | Spotted Executioner 33780 | -2/Protoforge | Lost 4 allies 33816 | -2/Protoforge | Spotted Executioner 33822 | -2/Protoforge | Spotted Executioner 33856 | -2/Protoforge | Spotted Striker 33859 | -2/Protoforge | Spotted Striker 33907 | -2/Protoforge | Lost 6 allies 33932 | -2/Protoforge | Build established: Scavenger-Sprinter 33948 | -2/Protoforge | Spotted Striker 33950 | -2/Protoforge | Spotted Executioner 33951 | -2/Protoforge | UFD reported confirmed Drillbomb installation 33966 | -2/Protoforge | Destroyed Executioner 33970 | -2/Protoforge | Spotted Striker 33970 | -2/Protoforge | Spotted Striker 33977 | -2/Protoforge | Spotted Executioner 33985 | -2/Protoforge | Allies destroyed Executioner 34060 | -2/Protoforge | Spotted Executioner 34062 | -2/Protoforge | Lost 18 allies 34062 | -2/Protoforge | Spotted Executioner 34065 | -2/Protoforge | Spotted Striker 34082 | -2/Protoforge | Spotted Striker 34105 | -2/Protoforge | Spotted Striker 34115 | -2/Protoforge | Destroyed Executioner 34162 | -2/Protoforge | Spotted Immortal 34165 | -2/Protoforge | Spotted Immortal 34165 | -2/Protoforge | Spotted Immortal 34168 | -2/Protoforge | UFD reported confirmed Drillbomb installation 34178 | -2/Protoforge | Spotted Striker 34178 | -2/Protoforge | Spotted Striker 34223 | -2/Protoforge | Destroyed Immortal 34224 | -2/Protoforge | Lost 22 allies 34231 | -2/Protoforge | Destroyed Immortal 34250 | -2/Protoforge | Spotted Hotshot 34251 | -2/Protoforge | Spotted Hotshot 34254 | -2/Protoforge | Spotted Hotshot 34271 | -2/Protoforge | Spotted Executioner 34302 | -2/Protoforge | Destroyed 7 combat bots 34306 | -2/Protoforge | Spotted Striker 34312 | -2/Protoforge | Destroyed Executioner 34321 | -2/Protoforge | Spotted Executioner 34324 | -2/Protoforge | Destroyed Executioner 34331 | -2/Protoforge | Destroyed Hotshot 34355 | -2/Protoforge | Lost 10 allies 34367 | -2/Protoforge | Spotted Striker 34377 | -2/Protoforge | Spotted Executioner 34380 | -2/Protoforge | Destroyed Executioner 34385 | -2/Protoforge | Destroyed Overlord 34398 | -2/Protoforge | Spotted Executioner 34399 | -2/Protoforge | Spotted Striker 34401 | -2/Protoforge | Destroyed Executioner 34404 | -2/Protoforge | Spotted Executioner 34419 | -2/Protoforge | Spotted Immortal 34421 | -2/Protoforge | Spotted Immortal 34422 | -2/Protoforge | Destroyed 7 combat bots 34422 | -2/Protoforge | Spotted Immortal 34430 | -2/Protoforge | Destroyed Immortal 34443 | -2/Protoforge | Lost 10 allies 34446 | -2/Protoforge | Spotted Striker 34446 | -2/Protoforge | Spotted Executioner 34448 | -2/Protoforge | Spotted Striker 34496 | -2/Protoforge | Found Exp. Targeting Computer 34503 | -2/Protoforge | Spotted Hotshot 34503 | -2/Protoforge | Spotted Hotshot 34503 | -2/Protoforge | Spotted Hotshot 34515 | -2/Protoforge | Spotted Striker 34520 | -2/Protoforge | Spotted Striker 34520 | -2/Protoforge | Spotted Hotshot 34521 | -2/Protoforge | Spotted Hotshot 34521 | -2/Protoforge | Spotted Striker 34521 | -2/Protoforge | Spotted Hotshot 34527 | -2/Protoforge | Spotted Decapitator 34532 | -2/Protoforge | Spotted Decapitator 34561 | -2/Protoforge | Spotted Striker 34585 | -2/Protoforge | Build established: Scavenger-Gunner 34615 | -2/Protoforge | Destroyed Hotshot 34615 | -2/Protoforge | Spotted Striker 34621 | -2/Protoforge | Spotted Striker 34623 | -2/Protoforge | Spotted Striker 34624 | -2/Protoforge | Spotted Striker 34633 | -2/Protoforge | Destroyed Striker 34637 | -2/Protoforge | Destroyed Hotshot 34698 | -2/Protoforge | UFD reported confirmed Drillbomb installation 34701 | -2/Protoforge | Spotted Striker 34710 | -2/Protoforge | Lost 5 allies 34714 | -2/Protoforge | Spotted B-90 Cyclops 34736 | -2/Protoforge | Destroyed B-90 Cyclops 34742 | -2/Protoforge | Spotted Striker 34743 | -2/Protoforge | Spotted Executioner 34744 | -2/Protoforge | Spotted Striker 34751 | -2/Protoforge | Destroyed Executioner 34753 | -2/Protoforge | Spotted Hotshot 34766 | -2/Protoforge | Destroyed Hotshot 34767 | -2/Protoforge | Spotted Hotshot 34769 | -2/Protoforge | Spotted Hotshot 34786 | -2/Protoforge | Spotted Hotshot 34795 | -2/Protoforge | Destroyed Hotshot 34797 | -2/Protoforge | Spotted Hotshot 34800 | -2/Protoforge | Spotted Hotshot 34804 | -2/Protoforge | Lost 10 allies 34805 | -2/Protoforge | Spotted Striker 34805 | -2/Protoforge | Spotted Striker 34810 | -2/Protoforge | Spotted Hotshot 34811 | -2/Protoforge | Destroyed Hotshot 34821 | -2/Protoforge | Destroyed Hotshot 34830 | -2/Protoforge | Destroyed Hotshot 34840 | -2/Protoforge | Spotted Executioner 34874 | -2/Protoforge | Found Cep. XC Strikerail 34876 | -2/Protoforge | Lost 4 allies 34900 | -2/Protoforge | Spotted Hotshot 34900 | -2/Protoforge | Spotted Hotshot 34900 | -2/Protoforge | Spotted Hotshot 34942 | -2/Protoforge | Spotted Executioner 34961 | -2/Protoforge | Spotted Executioner 34967 | -2/Protoforge | Core integrity fell below 50% 34978 | -2/Protoforge | Core integrity fell below 20% 34981 | -2/Protoforge | Destroyed by Superfortress with Omega Cannon Last Messages --------------- 34973_ Penetrated by Slug. 34973_ Slug penetrates Machine. 34973_ Imp. Antigrav System destroyed. 34974_ Penetrated by HV Slug. 34974_ Knocked back. 34974_ Penetrated by HV Slug. 34974_ HV Slug penetrates Machine. 34974_ HV Slug penetrates Wall. 34974_ HV Slug penetrates Machine. 34974_ HV Slug penetrates Wall. 34974_ Exp. Targeting Computer destroyed. 34974_ Cmb. Gravmag System destroyed. 34975_ Penetrated by Slug. 34977_ HV Slug penetrates Machine. 34977_ Penetrated by HV Slug. 34977_ Acquired 8 matter. 34981_ HV Slug penetrates Wall. 34981_ Penetrated by HV Slug. 34981_ HV Slug penetrates Wall. 34981_ Penetrated by HV Slug. Map ----- +----------------------------------------------------+ | #???????????????????????????????????????????? | | #####???????????????????????????????????????????? | | ^#???????????????????????????????????????????????? | | #???????????????????????????????????????????????? | | #???????????????????????????????????????????????? | | #???????????????????#???????????????????????????? | | #?????????????????? #???????????????????????????? | | #????????????????? #???????????????????????????? | | ################# #???????????????????????????? | | !* #???????????????????????????? | | #???????????????????????????? | | #???????????????????????????? | | ##### #######????????????????????????????? | | ????# #??????????????????????????????????? | | ????# = #??????????????????????????????????? | | ????# #??????????????????????????????????? | | ????# ] #??????????????????????????????????? | | ????## !!] ##??????????????????????????????????? | | #####" !!!! #???????????????????????????????????? | | ####"" ]![] #########???????????????????????????? | | """"" ! """"""#???????????????????????????? | | """ "" #???????????????????????????? | | "" #?????####??????????????????? | | " #????""""#??????????????????? | | ##### !##### ==#?????????? | | @% #?? | | FFF % #?? | | FFF ??? | | FFF ??? | | % ??? | | ???? | | ##### ///#####!!!!#####% ???? | | """""""""""""""" """"#????""""#?????"""#?????????? | | """"""""""""""""" """#????#####???????##?????????? | | """""""""""""""""""""#?????????????????????? ???? | | ######################?????????????????????# ??? | | ##############?????????????????????????????# ??? | | ???????????????????????????????????????????# ??? | | ???????????????????????????????????????????# ??? | | ????????????????????????????????????######## ### | | ???????????????????????????????????? | | ????????????????????????????????? | | ???????????????????????????????" """ | | ???????????????????????????? """" "" "" | | ??????????????????????????"" """ " """ "" | | ???????????????????????? " "" | | ??????????????????????? """ " | | ??????????????????????" """" " " | | ????????????????????? " "" " " %" | | ??????????????? ?? " """ " "" %" | +----------------------------------------------------+ Best States ------------- Heat Dissipation 100 Coolant Potential 120 Energy Generation 49 Energy Capacity 600 Matter Stores 300 Matter Capacity 300 Sight Range 23 Terrain Scan Range 20 Terrain Scan Density 10 Power Amplification 30 Additional Mass Support 9 Armor Coverage 225 Resistance: KI 30 Weapon Shielding 90 Weapon Cycling 15 Phase Shifting 10 Evasion (%) 63 Targeting Accuracy 44 Target Analysis 8 Core Analysis 8 Armor Integrity Analysis 40 Recoil Reduction 7 Offensive Hacking 42 Defensive Hacking 30 Item Schematics ----------------- Plasma Cutter | -9/Materials | Hacked Imp. Assault Rifle | -9/Materials | Scanalyzed Cld. Ion Engine | -9/Materials | Scanalyzed Adv. Beam Cannon | -9/Materials | Extracted Imp. Targeting Computer | -9/Materials | Scanalyzed Hcp. Storage Unit | -9/Materials | Extracted Lgt. Ion Engine | -9/Materials | Extracted Heat Sink | -9/Materials | Extracted Shield Generator | -9/Materials | Extracted Imp. Ion Engine | -9/Materials | Extracted Hvy. Assault Rifle | -9/Materials | Extracted Imp. Medium Laser | -9/Materials | Extracted Lgt. Fission Core | -8/Materials | Scanalyzed Hpw. Tractor Beam | -8/Materials | Scanalyzed Hpw. Shotgun | -8/Materials | Extracted Magnetic Acceleration Cannon | -8/Materials | Scanalyzed Recoil Stabilizer | -8/Materials | Scanalyzed Imp. Gravmag System | -7/Factory | Scanalyzed Cld. Airjet | -7/Factory | Scanalyzed Weapon Mount | -5/Factory | Hacked Adv. Recoil Stabilizer | -5/Factory | Hacked Remote Force Field | -5/Factory | Extracted Hpw. Shock Rifle | -5/Factory | Extracted Assault Drone Bay | -5/Zhirov | Free Exp. Heat Sink | -5/Zhirov | Free Exp. Optical Array | -5/Zhirov | Free Imp. Arc Thrower | -5/Zhirov | Free Hvy. Gauss Cannon | -4/Factory | Scanalyzed Graphene Brace | -4/Factory | Scanalyzed Vortex Chain Reactor | -3/Research | Scanalyzed Cld. Antigrav System | -3/Research | Scanalyzed Antigrav Array | -3/Research | Scanalyzed Exp. Power Amplifier | -3/Testing | Archive Exp. Energy Well | -3/Testing | Archive Imp. Lightning Gun | -3/Testing | Archive Lgt. Particle Reactor | -3/Testing | Scanalyzed Graviton Cannon | -3/Testing | Hacked Heavy Servo Lattice | -3/Testing | Hacked Hyp. Mass Driver | -3/Testing | Hacked Com. Linear Accelerator | -2/Research | Scanalyzed Graviton Reactor | -2/Research | Scanalyzed Enh. Hardcell Cannon | -2/Quarantine | Scanalyzed Adv. Cooling System | -2/Quarantine | Scanalyzed Exp. Field Recycling Unit | -2/Quarantine | Archive Centrium Light Armor Plating | -2/Quarantine | Archive Cld. Linear Gravjet | -2/Quarantine | Archive Robot Schematics ------------------ O-16 Technician | -10/Materials | Hacked P-70 Sage | -5/Factory | Hacked Y-54 Guardian | -5/Factory | Hacked A-27 Freighter | -2/Quarantine | Archive W-44 Eye | -2/Quarantine | Archive Fabricated ------------ L-41 Fighter | x3 | -7/Factory | Preloaded Y-54 Guardian | x2 | -5/Factory P-70 Sage | x2 | -5/Factory P-70 Sage | x2 | -4/Factory Heavy Servo Lattice | x2 | -2/Protoforge Enh. Hardcell Cannon | x2 | -2/Protoforge | Preloaded S-43 Plague | x4 | -2/Protoforge | Preloaded Graviton Cannon | x1 | -2/Protoforge Repaired ---------- Assault Rifle | 14% | -10/Materials Lgt. Assault Rifle | 37% | -10/Materials Lgt. Treads | 28% | -9/Materials Imp. Assault Rifle | 62% | -9/Materials Imp. Assault Rifle | 58% | -9/Materials Cld. Ion Engine | 55% | -9/Materials Adv. Treads | 30% | -8/Materials Imp. Assault Rifle | 35% | -8/Materials Imp. Assault Rifle | 42% | -8/Materials Imp. Assault Rifle | 53% | -8/Materials Hrd. Medium Armor Plating | 43% | -8/Materials Magnetic Acceleration Cannon | 19% | -8/Materials Recoil Stabilizer | 4% | -7/Storage Imp. Gravmag System | 32% | -7/Storage Hpw. Tractor Beam | 10% | -5/Factory F-cell Engine | 25% | -5/Factory Hyp. Gauss Cannon | 49% | -5/Factory Antigrav System | 65% | -5/Factory | Corrupted Gravmag Array | 15% | -4/Factory Adv. Recoil Stabilizer | 30% | -4/Factory Enh. Hardcell Cannon | 13% | -3/Research Antigrav Array | 34% | -3/Testing Linear Accelerator | 2% | -3/Testing Alien Tech Used ----------------- Integrated Dissipator Subatomic Replicator Phase Redirector Sigix Broadsword Phase Armor Terrabomb Core Stripper Achievements -------------- None Challenges ------------ None Game ------ Seed HoverTeslaNeutralizer Manual? 0 Play Time 09:31:21 Cumulative 556.9 hours Start 2025.08.18 @ 20:11:08 End 2025.08.20 @ 01:39:38 Sessions 3 Manual Loads 0 Difficulty Rogue Special Mode None Game No. 291 Rogue 291 Adventurer 0 Explorer 0 Win Type - Total 6 Types 3/0/1/1/0/0/0/0/0/1 Lore% 86 Gallery% 77 Achievement% 68 Wizard Run 0 Options --------- Layout 2 ASCII 0 Keyboard 1 Movement Vi Keybinds 0 Fullscreen 1 Font 16/Tamsyn Map View 55x47 Zoom Use 0% Tactical HUD 1 Map Filters NONE Filters NONE Steam 0 RUN: 45097803-46ff-4115-a8e0-e6baffda5f99